Workbook

Sheet Инструкция
AA1: (требуется обновление)
B2: ="Код шаблона: " & GetCode() -> Код шаблона: 46EP.STX
B3: ="Версия " & GetVersion() -> Версия 1.0
B5: Сведения об отпуске (передаче) электроэнергии распределительными сетевыми организациями отдельным категориям потребителей Приказ Росстата: Об утверждении формы от 05.09.2018 № 543
E7: • На рабочем месте должен быть установлен MS Office 2007 SP3, 2010, 2013, 2016 с полной версией MS Excel • Макросы во время работы должны быть включены (!) • Для корректной работы отчёта требуется выбрать низкий уровень безопасности (В меню MS Excel 2007/2010/2013/2016: Параметры Excel | Центр управления безопасностью | Параметры центра управления безопасностью | Параметры макросов | Включить все макросы | ОК) • Если Вы работаете в табличном процессоре MS Excel 2007 и выше, то можете использовать для работы формат XLSB (Двоичная книга Excel). При работе в формате XLSB заметно быстрее происходит сохранение файла, а также уменьшается размер по сравнению с форматами XLS и XLSM • Не рекомендуется снимать защиту с листов и каким-либо образом модифицировать защищаемые формулы и расчётные поля, в противном случае, отчёт будет отклонён системой • При сохранении не следует выбирать формат XLSX (Книга Excel), так как в указанном формате макросы, необходимые для работы отчёта, безвозвратно удаляются
E21: A | F21: - предназначенные для заполнения | O21: A | P21: - обязательные для заполнения поля
E22: A | F22: - с формулами и константами | O22: A | P22: - незаполняемые поля
E23: A | F23: - с выбором значений по двойному клику
E35: Если в предложенном Вам списке необходимая организация, МР/МО отсутствуют, обновите реестры с помощью кнопок В результате синхронизации с базой данных список организаций (МР/МО) будет заменён актуальным (механизм синхронизации требует подключения к сети Интернет и основан на использовании протокола HTTPS (TCP порт 443)) Если после обновления Вам не удалось найти необходимую организацию в списке, обратитесь к ответственному за поддержание реестра Вашего региона.
E46: • При сохранении шаблона осуществляется проверка корректности данных, в том числе на наличие значений в ячейках, обязательных для заполнения • Если какая-то ячейка не удовлетворяет условию проверки, на лист «Проверка» добавляется гиперссылка на данную ячейку и указывается причина ошибки • В колонке «Статус» для каждого сообщения возможны 2 значения: ошибка и предупреждение • При наличии сообщений со статусом «Ошибка» шаблон будет отклонён системой и не будет загружен в хранилище данных, сообщения со статусом «Предупреждение» носят информационный характер, и такой шаблон будет принят системой
E59: Консультации: | K59: Обратиться за помощью
E60: Дистрибутивы: | K60: Перейти
E70: Общие указания по заполнению:
E71: Указания по заполнению формы федерального статистического наблюдения
E73: Если срок предоставления отчета истек, необходимо загрузить в систему пояснительную записку и указать ссылку на нее на листе "Титульный" в поле "Ссылка на обосновывающие материалы"
E76: Обосновывающие материалы необходимо загружать с помощью "ЕИАС Мониторинг":
E77: Руководство по загрузке документов
E79: Пример пояснительной записки:
E80: Пояснительная записка
E87: Отчётные формы: | K87: Перейти к разделу
E89: Контакты специалистов ЦА ФАС России:
E90: ФИО: | K90: Максим Николаевич Пальянов
E91: E-mail: | K91: palyanovmn@fas.gov.ru
E93: ФИО: | K93: Игорь Владиславович Бедрин
E94: E-mail: | K94: bedrin@fas.gov.ru
E103: При наличии подключения к Интернет, можно автоматически проверять наличие доступных обновлений. Выберите способ оповещения о наличии обновлений для отчёта:
F105: проверять доступные обновления (рекомендуется) | AA105: y
F107: никогда не проверять наличие обновлений (не рекомендуется)

Sheet Лог обновления (hidden)
A2: 3/17/2012 12:12:41 AM | B2: Дата/Время | C2: Сообщение | D2: Статус
B3: 2018-12-05T08:29:24 | C3: Проверка доступных обновлений... | D3: Информация
B4: 2018-12-05T08:29:26 | C4: Нет доступных обновлений для отчёта с кодом 46EP.STX! | D4: Информация
B5: 2018-12-05T08:29:52 | C5: Проверка доступных обновлений... | D5: Информация
B6: 2018-12-05T08:29:53 | C6: Нет доступных обновлений для отчёта с кодом 46EP.STX! | D6: Информация
B7: 2018-12-05T08:32:33 | C7: Проверка доступных обновлений... | D7: Информация
B8: 2018-12-05T08:32:34 | C8: Нет доступных обновлений для отчёта с кодом 46EP.STX! | D8: Информация
B9: 2018-12-11T11:03:02 | C9: Проверка доступных обновлений... | D9: Информация
B10: 2018-12-11T11:03:04 | C10: Нет доступных обновлений для отчёта с кодом 46EP.STX! | D10: Информация
B11: 2018-12-24T08:32:12 | C11: Проверка доступных обновлений... | D11: Информация
B12: 2018-12-24T08:32:14 | C12: Нет доступных обновлений для отчёта с кодом 46EP.STX! | D12: Информация
B13: 2018-12-25T09:15:42 | C13: Проверка доступных обновлений... | D13: Информация
B14: 2018-12-25T09:15:44 | C14: Нет доступных обновлений для отчёта с кодом 46EP.STX! | D14: Информация

Sheet Титульный
G7: =version -> Версия 1.0
E8: Сведения об отпуске (передаче) электроэнергии распределительными сетевыми организациями отдельным категориям потребителей
F10: Субъект РФ | G10: Самарская область
G11: Отчетный период
F12: Год | G12: 2018
F13: Месяц | G13: ноябрь
F15: Наименование организации | G15: АО "Самарская кабельная компания" | J15: 26322459
F16: ИНН | G16: 6318101450
F17: КПП | G17: 631801001
F18: Вид деятельности | G18: РСО
F20: Тип отчета | G20: В целом по организации
F21: Наименование обособленного подразделения
F23: ОКПО | G23: 05758670
F25: ОКАТО | G25: 36401392000
F27: Муниципальный район | G27: городской округ Самара
F28: Муниципальное образование | G28: городской округ Самара
F29: ОКТМО | G29: 36701000
F31: Котлодержатель | G31: Нет
F33: Плательщик НДС | G33: Да
G34: Адрес организации
F35: Юридический адрес: | G35: 443022, г. Самара, ул. Кабельная, 9
F36: Почтовый адрес: | G36: 443022, г. Самара, ул. Кабельная, 9
G37: Руководитель
F38: Фамилия, имя, отчество | G38: Ключников Валерий Федорович
F39: (код) номер телефона | G39: (846) 228-24-00
G40: Главный бухгалтер
F41: Фамилия, имя, отчество | G41: Тесемкина Татьяна Геннадьевна
F42: (код) номер телефона | G42: (846) 228-22-46
G43: Должностное лицо, ответственное за составление формы
F44: Фамилия, имя, отчество | G44: Круглова Татьяна Владимировна
F45: Должность | G45: инженер ОГЭ
F46: (код) номер телефона | G46: (846) 228-24-57
F47: e-mail | G47: Круглова Т. В. [kruglova@samaracable.ru]
F49: Максимальный интервал представления отчёта за прошедшие периоды (дней) | G49: 90
E56: Дата последнего обновления реестра МР/МО: 05.12.2018 8:29:52
E57: Дата последнего обновления реестра организаций: 05.12.2018 8:32:11
F59: Срок предоставления отчета истек | G59: Нет
F60: Ссылка на обосновывающие материалы

Sheet Отпуск ЭЭ сет организациями
F5: L1 | G5: L1.1 | H5: L1.2 | I5: L2 | J5: L2.1 | K5: L2.2 | L5: L3 | M5: L3.1 | N5: L3.1 | O5: L3.2 | P5: L4.1 | Q5: L4.2
D8: Сведения об отпуске (передаче) электроэнергии распределительными сетевыми организациями отдельным категориям потребителей
D9: =IF(org="","Не определено",org) -> АО "Самарская кабельная компания"
K10: Коды по ОКЕИ: 1000 киловатт-часов – 246, мегаватт – 215, тысяча рублей – 384
D11: № п/п | E11: Наименование показателя | F11: Код строки | G11: Всего | H11: В том числе по уровню напряжения
H12: ВН | I12: СН1 | J12: СН2 | K12: НН
D13: 0 | E13: 1 | F13: 2 | G13: 3 | H13: 4 | I13: 5 | J13: 6 | K13: 7
D14: I. Электроэнергия (тыс. кВт ч)
D15: 1 | E15: Поступление в сеть из других организаций: | F15: 10 | G15: =SUM(H15:K15) -> 2926.136 | H15: =H16+H17+H20+H23 -> 2926.136 | I15: =I16+I17+I20+I23 -> 0 | J15: =J16+J17+J20+J23 -> 0 | K15: =K16+K17+K20+K23 -> 0 | P15: 10
D16: 1.1 | E16: из сетей ПАО "ФСК ЕЭС" | F16: 20 | G16: =SUM(H16:K16) -> 0 | P16: 20
D17: 1.2 | E17: от генерирующих компаний и блок-станций: | F17: 30 | G17: 0 | H17: =SUM(H18:H19) -> 0 | I17: =SUM(I18:I19) -> 0 | J17: =SUM(J18:J19) -> 0 | K17: =SUM(K18:K19) -> 0 | P17: 30
D18: 1.2.0 | F18: 30
E19: Добавить организацию
D20: 1.3 | E20: от несетевых организаций: | F20: 230 | G20: 0 | H20: =SUM(H21:H22) -> 0 | I20: =SUM(I21:I22) -> 0 | J20: =SUM(J21:J22) -> 0 | K20: =SUM(K21:K22) -> 0
D21: 1.3.0 | F21: 230
E22: Добавить организацию
D23: 1.4 | E23: от смежных сетевых организаций: | F23: 430 | G23: 2926.136 | H23: =SUM(H24:H26) -> 2926.136 | I23: =SUM(I24:I26) -> 0 | J23: =SUM(J24:J26) -> 0 | K23: =SUM(K24:K26) -> 0 | P23: 40
D24: 1.4.0 | F24: 430
C25: О | D25: 1.4.1 | E25: ПАО "МРСК Волги" | F25: 431 | G25: =SUM(H25:K25) -> 2926.136 | H25: 2926.136 | M25: 6450925977 | N25: 645001001 | O25: 26809138
E26: Добавить организацию
D27: 2 | E27: Поступление в сеть из других уровней напряжения (трансформация) | F27: 630 | G27: 779.9507187 | H27: =H29+H30+H31 -> 0 | I27: =I28+I30+I31 -> 0 | J27: =J28+J29+J31 -> 661.9929983 | K27: =K28+K29+K30 -> 117.9577204 | P27: 50
D28: 2.1 | E28: ВН | F28: 640 | G28: 661.9929983 | J28: =H25-H46-H33-H47 -> 661.9929983 | P28: 60
D29: 2.2 | E29: СН1 | F29: 650 | G29: 0 | P29: 70
D30: 2.3 | E30: СН2 | F30: 660 | G30: 117.9577204 | K30: =J27-J33-J47 -> 117.9577204 | P30: 80
D31: 2.4 | E31: НН | F31: 670 | G31: 0 | P31: 90
D32: 3 | E32: Генерация на установках организации (совмещение деятельности) | F32: 680 | G32: 0
D33: 4 | E33: Отпуск из сети: | F33: 690 | G33: 599.874 | H33: =H34+H36+H39+H43 -> 0 | I33: =I34+I36+I39+I43 -> 0 | J33: =J34+J36+J39+J43 -> 492.985 | K33: =K34+K36+K39+K43 -> 106.889 | P33: 100
D34: 4.1 | E34: прямым прочим потребителям по договорам оказания услуг по передаче электрической энергии, в том числе: | F34: 700 | G34: 0
D35: 4.1.1 | E35: потребителям, опосредованно подключенным к шинам генераторов | F35: 710 | G35: 0
D36: 4.2 | E36: потребителям ГП, ЭСО, ЭСК, в том числе: | F36: 720 | G36: 359.206 | J36: =J37 -> 343.623 | K36: =K37 -> 15.583
D37: 4.2.1 | E37: прочим потребителям, в том числе: | F37: 730 | G37: 359.206 | J37: ='[1]2018 год '!$E$40/1000 -> 343.623 | K37: =('[1]2018 год '!$E$41+'[1]2018 год '!$E$42)/1000 -> 15.583
D38: 4.2.1.1 | E38: потребителям, опосредованно подключенным к шинам генераторов | F38: 740 | G38: 0
D39: 4.3 | E39: смежным сетевым организациям: | F39: 750 | G39: 141.322 | H39: =SUM(H40:H42) -> 0 | I39: =SUM(I40:I42) -> 0 | J39: =SUM(J40:J42) -> 141.322 | K39: =SUM(K40:K42) -> 0
D40: 4.3.0 | F40: 750
C41: О | D41: 4.3.1 | E41: ООО "СамараСеть" | F41: 751 | G41: =SUM(H41:K41) -> 141.322 | J41: ='[1]2018 год '!$J$40/1000 -> 141.322 | M41: 6316128600 | N41: 631601001 | O41: 28798366
E42: Добавить организацию
D43: 4.4 | E43: населению и приравненным к нему категориям | F43: 950 | G43: 99.346 | J43: ='[1]2018 год '!$D$40/1000 -> 8.04 | K43: ='[1]2018 год '!$D$41/1000 -> 91.306 | P43: 120
D44: 5 | E44: Отпуск в сеть других уровней напряжения | F44: 960 | G44: 779.9507187 | H44: =J28 -> 661.9929983 | J44: =J27-J33-J49 -> 117.9577204 | P44: 150
D45: 6 | E45: Хозяйственные нужды организации | F45: 970 | G45: 0 | P45: 160
D46: 7 | E46: Собственное потребление (совмещение деятельности) | F46: 980 | G46: 2264.143002 | H46: 2264.143002 | P46: 180
D47: 8 | E47: Общий объем потерь (фактические объемы), в том числе: | F47: 990 | G47: 62.11899827 | J47: =J49 -> 51.05027783 | K47: =K49 -> 11.06872044 | P47: 190
D48: 8.1 | E48: относимые на собственное потребление (фактическое значение) | F48: 1000 | G48: 0 | P48: 200
D49: 9 | E49: Нормативные потери (объемы потерь учтенные в сводном прогнозном балансе) | F49: 1010 | G49: 62.11899827 | J49: ='[1]2018 год '!$Q$40/1000 -> 51.05027783 | K49: ='[1]2018 год '!$Q$41/1000 -> 11.06872044
D50: 10 | E50: Объем превышения фактических объемов потерь электрической энергии над объемами потерь, учтенными в сводном прогнозном балансе за соответствующий расчетный период | F50: 1020 | G50: 0 | H50: =H47-H49 -> 0 | I50: =I47-I49 -> 0 | J50: =J47-J49 -> 0 | K50: =K47-K49 -> 0
D51: 11 | E51: Небаланс | F51: 1030 | G51: 1.847411113e-13 | H51: =(H15+H27+H32)-(H33+H44+H45+H46+H47) -> 0 | I51: =(I15+I27+I32)-(I33+I44+I45+I46+I47) -> 0 | J51: =(J15+J27+J32)-(J33+J44+J45+J46+J47) -> 0 | K51: =(K15+K27+K32)-(K33+K44+K45+K46+K47) -> 1.847411113e-13 | P51: 210
D52: II. Мощность (МВт)
D53: 12 | E53: Поступление в сеть из других организаций: | F53: 1040 | G53: 4.529622291 | H53: =H54+H55+H58+H61 -> 4.529622291 | I53: =I54+I55+I58+I61 -> 0 | J53: =J54+J55+J58+J61 -> 0 | K53: =K54+K55+K58+K61 -> 0 | P53: 300
D54: 12.1 | E54: из сетей ПАО "ФСК ЕЭС" | F54: 1050 | G54: 0 | P54: 310
D55: 12.2 | E55: от генерирующих компаний и блок-станций: | F55: 1060 | G55: 0 | H55: =SUM(H56:H57) -> 0 | I55: =SUM(I56:I57) -> 0 | J55: =SUM(J56:J57) -> 0 | K55: =SUM(K56:K57) -> 0 | P55: 320
D56: 12.2.0 | F56: 1060
E57: Добавить организацию
D58: 12.3 | E58: от несетевых организаций: | F58: 1260 | G58: 0 | H58: =SUM(H59:H60) -> 0 | I58: =SUM(I59:I60) -> 0 | J58: =SUM(J59:J60) -> 0 | K58: =SUM(K59:K60) -> 0
D59: 12.3.0 | F59: 1260
E60: Добавить организацию
D61: 12.4 | E61: от смежных сетевых организаций: | F61: 1460 | G61: 4.529622291 | H61: =SUM(H62:H64) -> 4.529622291 | I61: =SUM(I62:I64) -> 0 | J61: =SUM(J62:J64) -> 0 | K61: =SUM(K62:K64) -> 0 | P61: 330
D62: 12.4.0 | F62: 1460
C63: О | D63: 12.4.1 | E63: ПАО "МРСК Волги" | F63: 1461 | G63: =SUM(H63:K63) -> 4.529622291 | H63: =H25/(646) -> 4.529622291 | M63: 6450925977 | N63: 645001001 | O63: 26809138
E64: Добавить организацию
D65: 13 | E65: Поступление в сеть из других уровней напряжения (трансформация) | F65: 1660 | G65: 1.207354054 | H65: =H67+H68+H69 -> 0 | I65: =I66+I68+I69 -> 0 | J65: =J66+J67+J69 -> 1.024756963 | K65: =K66+K67+K68 -> 0.1825970905 | P65: 340
D66: 13.1 | E66: ВН | F66: 1670 | G66: 1.024756963 | J66: =J28/646 -> 1.024756963 | P66: 350
D67: 13.2 | E67: СН1 | F67: 1680 | G67: 0 | P67: 360
D68: 13.3 | E68: СН2 | F68: 1690 | G68: 0.1825970905 | K68: =K30/646 -> 0.1825970905 | P68: 370
D69: 13.4 | E69: НН | F69: 1700 | G69: 0 | P69: 380
D70: 14 | E70: Генерация на установках организации (совмещение деятельности) | F70: 1710 | G70: 0
D71: 15 | E71: Отпуск из сети: | F71: 1720 | G71: 0.9285975232 | H71: =H72+H74+H77+H81 -> 0 | I71: =I72+I74+I77+I81 -> 0 | J71: =J72+J74+J77+J81 -> 0.7631346749 | K71: =K72+K74+K77+K81 -> 0.1654628483 | P71: 390
D72: 15.1 | E72: прямым прочим потребителям по договорам оказания услуг по передаче электрической энергии, в том числе: | F72: 1730 | G72: 0
D73: 15.1.1 | E73: потребителям, опосредованно подключенным к шинам генераторов | F73: 1740 | G73: 0
D74: 15.2 | E74: потребителям ГП, ЭСО, ЭСК, в том числе: | F74: 1750 | G74: 0.5560464396 | J74: =J36/646 -> 0.5319241486 | K74: =K36/646 -> 0.02412229102
D75: 15.2.1 | E75: прочим потребителям, в том числе: | F75: 1760 | G75: 0.5560464396 | J75: =J74 -> 0.5319241486 | K75: =K74 -> 0.02412229102
D76: 15.2.1.1 | E76: потребителям, опосредованно подключенным к шинам генераторов | F76: 1770 | G76: 0
D77: 15.3 | E77: смежным сетевым организациям: | F77: 1780 | G77: 0.2187647059 | H77: =SUM(H78:H80) -> 0 | I77: =SUM(I78:I80) -> 0 | J77: =SUM(J78:J80) -> 0.2187647059 | K77: =SUM(K78:K80) -> 0
D78: 15.3.0 | F78: 1780
C79: О | D79: 15.3.1 | E79: ООО "СамараСеть" | F79: 1781 | G79: =SUM(H79:K79) -> 0.2187647059 | J79: =J41/646 -> 0.2187647059 | M79: 6316128600 | N79: 631601001 | O79: 28798366
E80: Добавить организацию
D81: 15.4 | E81: населению и приравненным к нему категориям | F81: 1980 | G81: 0.1537863777 | J81: =J43/646 -> 0.01244582043 | K81: =K43/646 -> 0.1413405573 | P81: 410
D82: 16 | E82: Отпуск в сеть других уровней напряжения | F82: 1990 | G82: 1.207354054 | H82: =H44/646 -> 1.024756963 | J82: =J65-J71-J87 -> 0.1825970905 | P82: 440
D83: 17 | E83: Хозяйственные нужды организации | F83: 2000 | G83: 0 | P83: 450
D84: 18 | E84: Собственное потребление (совмещение деятельности) | F84: 2010 | G84: 3.504865328 | H84: =H46/646 -> 3.504865328 | P84: 470
D85: 19 | E85: Общий объем потерь (фактические объемы), в том числе: | F85: 2020 | G85: 0.09615944005 | J85: =J87 -> 0.07902519788 | K85: =K87 -> 0.01713424217 | P85: 480
D86: 19.1 | E86: относимые на собственное потребление | F86: 2030 | G86: 0 | P86: 490
D87: 20 | E87: Нормативные потери (объемы потерь учтенные в сводном прогнозном балансе) | F87: 2040 | G87: 0.09615944005 | J87: =J49/646 -> 0.07902519788 | K87: =K49/646 -> 0.01713424217
D88: 21 | E88: Объем превышения фактических объемов потерь электрической энергии над объемами потерь, учтенными в сводном прогнозном балансе за соответствующий расчетный период | F88: 2050 | G88: 0 | H88: =H85-H87 -> 0 | I88: =I85-I87 -> 0 | J88: =J85-J87 -> 0 | K88: =K85-K87 -> 0
D89: 22 | E89: Небаланс | F89: 2060 | G89: 2.775557562e-16 | H89: =(H53+H65+H70)-(H71+H82+H83+H84+H85) -> 0 | I89: =(I53+I65+I70)-(I71+I82+I83+I84+I85) -> 0 | J89: =(J53+J65+J70)-(J71+J82+J83+J84+J85) -> 0 | K89: =(K53+K65+K70)-(K71+K82+K83+K84+K85) -> 2.775557562e-16 | P89: 500
D90: III. Мощность (МВт)
D91: 23 | E91: Заявленная мощность | F91: 2070 | G91: 0.9244 | J91: 0.6653 | K91: 0.2591 | P91: 600
D92: 24 | E92: Максимальная мощность | F92: 2080 | G92: 0.9244 | J92: 0.6653 | K92: 0.2591 | P92: 610
D93: 25 | E93: Резервируемая мощность | F93: 2090 | G93: 0 | P93: 620
D94: IV. Фактический полезный отпуск конечным потребителям (тыс. кВт ч; МВт)
D95: 26 | E95: Полезный отпуск конечным потребителям (тыс. кВт ч): | F95: 2100 | G95: 0 | H95: =SUM(H96:H97) -> 0 | I95: =SUM(I96:I97) -> 0 | J95: =SUM(J96:J97) -> 0 | K95: =SUM(K96:K97) -> 0 | P95: 700
D96: 26.1 | E96: по одноставочному тарифу | F96: 2110 | G96: 0 | P96: 710
D97: 26.2 | E97: по двухставочному тарифу: | F97: 2120 | G97: 0 | H97: =H100 -> 0 | I97: =I100 -> 0 | J97: =J100 -> 0 | K97: =K100 -> 0 | P97: 720
D98: 26.2.1 | E98: мощность (МВт), в том числе: | F98: 2130 | G98: 0 | P98: 730
D99: 26.2.1.1 | E99: опосредованно подключенным к шинам генераторов (МВт) | F99: 2140 | G99: 0
D100: 26.2.2 | E100: компенсация потерь (тыс. кВт ч) | F100: 2150 | G100: 0 | P100: 740
D101: 27 | E101: Полезный отпуск потребителям ГП, ЭСО (тыс. кВт ч): | F101: 2160 | G101: 458.552 | H101: =H102+H118 -> 0 | I101: =I102+I118 -> 0 | J101: =J102+J118 -> 351.663 | K101: =K102+K118 -> 106.889 | P101: 750
D102: 27.1 | E102: по одноставочному тарифу: | F102: 2170 | G102: 457.223 | H102: =H103+H104 -> 0 | I102: =I103+I104 -> 0 | J102: =J103+J104 -> 351.663 | K102: =K103+K104 -> 105.56 | P102: 760
D103: 27.1.1 | E103: прочим потребителям | F103: 2180 | G103: 357.877 | J103: ='[1]2018 год '!$E$40/1000 -> 343.623 | K103: ='[1]2018 год '!$E$41/1000 -> 14.254
D104: 27.1.2 | E104: населению и приравненным к нему категориям потребителей: | F104: 2190 | G104: 99.346 | H104: =H105+H108+H111+H114+H115+H116+H117 -> 0 | I104: =I105+I108+I111+I114+I115+I116+I117 -> 0 | J104: =J105+J108+J111+J114+J115+J116+J117 -> 8.04 | K104: =K105+K108+K111+K114+K115+K116+K117 -> 91.306
D105: 27.1.2.1 | E105: Населению, проживающему в городских населенных пунктах в домах, не оборудованных в установленном порядке стационарными электроплитами и (или) электроотопительными установками и приравненным к нему категориям потребителей: | F105: 2200 | G105: 8.602 | H105: =H106+H107 -> 0 | I105: =I106+I107 -> 0 | J105: =J106+J107 -> 0 | K105: =K106+K107 -> 8.602
D106: 27.1.2.1.1 | E106: в пределах социальной нормы потребления | F106: 2210 | G106: 8.602 | K106: 8.602
D107: 27.1.2.1.2 | E107: сверх социальной нормы потребления | F107: 2220 | G107: 0
D108: 27.1.2.2 | E108: Населению, проживающему в городских населенных пунктах в домах, оборудованных в установленном порядке стационарными электроплитами и электроотопительными установками и приравненным к нему категориям потребителей: | F108: 2230 | G108: 82.704 | H108: =H109+H110 -> 0 | I108: =I109+I110 -> 0 | J108: =J109+J110 -> 0 | K108: =K109+K110 -> 82.704
D109: 27.1.2.2.1 | E109: в пределах социальной нормы потребления | F109: 2240 | G109: 82.704 | K109: 82.704
D110: 27.1.2.2.2 | E110: сверх социальной нормы потребления | F110: 2250 | G110: 0
D111: 27.1.2.3 | E111: Населению, проживающему в сельских населенных пунктах и приравненным к нему потребителям: | F111: 2260 | G111: 0 | H111: =H112+H113 -> 0 | I111: =I112+I113 -> 0 | J111: =J112+J113 -> 0 | K111: =K112+K113 -> 0
D112: 27.1.2.3.1 | E112: в пределах социальной нормы потребления | F112: 2270 | G112: 0
D113: 27.1.2.3.2 | E113: сверх социальной нормы потребления | F113: 2280 | G113: 0
D114: 27.1.2.4 | E114: Садоводческим, огородническим или дачным некоммерческим объединениям граждан | F114: 2290 | G114: 0
D115: 27.1.2.5 | E115: Религиозным организациям | F115: 2300 | G115: 0
D116: 27.1.2.6 | E116: Юридическим лицам приобретающим электроэнергию в целях потребления на коммунально-бытовые нужды в населенных пунктах, жилых зонах при воинских частях и в целях потребления осужденными в помещениях для их содержания | F116: 2310 | G116: 0
D117: 27.1.2.7 | E117: Некоммерческим объединениям граждан (гаражно-строительные, гаражные кооперативы) и хозяйственные постройки физических лиц | F117: 2320 | G117: 8.04 | J117: 8.04
D118: 27.2 | E118: по двухставочному тарифу (прочие потребители): | F118: 2330 | G118: 1.329 | H118: =H121 -> 0 | I118: =I121 -> 0 | J118: =J121 -> 0 | K118: =K121 -> 1.329 | P118: 770
D119: 27.2.1 | E119: мощность (МВт), в том числе: | F119: 2340 | G119: 0.001905 | K119: 0.001905 | P119: 780
D120: 27.2.1.1 | E120: опосредованно подключенным к шинам генераторов (МВт) | F120: 2350 | G120: 0
D121: 27.2.2 | E121: компенсация потерь (тыс. кВт ч) | F121: 2360 | G121: 1.329 | K121: 1.329 | P121: 790
D122: 28 | E122: Оплачиваемый сетевыми организациями объем оказанных услуг по индивидуальному тарифу: | F122: 2370 | G122: 141.322 | H122: =SUM(H123:H124) -> 0 | I122: =SUM(I123:I124) -> 0 | J122: =SUM(J123:J124) -> 141.322 | K122: =SUM(K123:K124) -> 0
D123: 28.1 | E123: по одноставочному тарифу | F123: 2380 | G123: 141.322 | J123: =J41 -> 141.322
D124: 28.2 | E124: по двухставочному тарифу: | F124: 2390 | G124: 0 | H124: =H126 -> 0 | I124: =I126 -> 0 | J124: =J126 -> 0 | K124: =K126 -> 0
D125: 28.2.1 | E125: мощность (МВт) | F125: 2400 | G125: 0
D126: 28.2.2 | E126: компенсация потерь (тыс. кВт ч) | F126: 2410 | G126: 0
D127: V. Стоимость услуг (тыс. руб.)
D128: 29 | E128: Стоимость услуг, оплачиваемая потребителями (конечными потребителями по прямым договорам и ТСО): | F128: 2420 | G128: 0 | H128: =SUM( H129:H130) -> 0 | I128: =SUM( I129:I130) -> 0 | J128: =SUM( J129:J130) -> 0 | K128: =SUM( K129:K130) -> 0 | P128: 800
D129: 29.1 | E129: по одноставочному тарифу | F129: 2430 | G129: 0 | P129: 810
D130: 29.2 | E130: по двухставочному тарифу: | F130: 2440 | G130: 0 | H130: =H131+H133 -> 0 | I130: =I131+I133 -> 0 | J130: =J131+J133 -> 0 | K130: =K131+K133 -> 0 | P130: 820
D131: 29.2.1 | E131: мощность, в том числе: | F131: 2450 | G131: 0 | P131: 830
D132: 29.2.1.1 | E132: опосредованно потребителям с шин генераторов | F132: 2460 | G132: 0
D133: 29.2.2 | E133: компенсация потерь | F133: 2470 | G133: 0 | P133: 840
D134: 30 | E134: Стоимость услуг, оплачиваемая ГП, ЭСО: | F134: 2480 | G134: 1264.24005 | H134: =SUM( H135+H140) -> 0 | I134: =SUM( I135+I140) -> 0 | J134: =SUM( J135+J140) -> 1110.66269 | K134: =SUM( K135+K140) -> 153.57736 | P134: 850
D135: 30.1 | E135: по одноставочному тарифу | F135: 2490 | G135: =SUM(H135:K135) -> 1258.65964 | H135: =SUM( H136:H137) -> 0 | I135: =SUM( I136:I137) -> 0 | J135: =SUM( J136:J137) -> 1110.66269 | K135: =SUM( K136:K137) -> 147.99695 | P135: 860
D136: 30.1.1 | E136: прочим потребителям | F136: 2500 | G136: 1160.31642 | J136: 1096.08039 | K136: 64.23603
D137: 30.1.2 | E137: населению и приравненным к нему категориям потребителей: | F137: 2510 | G137: 98.34322 | H137: =H138+H139 -> 0 | I137: =I138+I139 -> 0 | J137: =J138+J139 -> 14.5823 | K137: =K138+K139 -> 83.76092
D138: 30.1.2.1 | E138: в пределах социальной нормы потребления | F138: 2520 | G138: 98.34322 | J138: 14.5823 | K138: =15.60161+68.15931 -> 83.76092
D139: 30.1.2.2 | E139: сверх социальной нормы потребления | F139: 2530 | G139: 0
D140: 30.2 | E140: по двухставочному тарифу (прочие потребители): | F140: 2540 | G140: 5.58041 | H140: =H141+H143 -> 0 | I140: =I141+I143 -> 0 | J140: =J141+J143 -> 0 | K140: =K141+K143 -> 5.58041 | P140: 870
D141: 30.2.1 | E141: мощность, в том числе: | F141: 2550 | G141: 4.35877 | K141: 4.35877 | P141: 880
D142: 30.2.1.1 | E142: опосредованно потребителям с шин генераторов | F142: 2560 | G142: 0
D143: 30.2.2 | E143: компенсация потерь | F143: 2570 | G143: 1.22164 | K143: 1.22164 | P143: 890
D144: 31 | E144: Стоимость услуг, оплачиваемых сетевыми организациями по индивидуальному тарифу: | F144: 2580 | G144: 0 | H144: =SUM( H145:H146) -> 0 | I144: =SUM( I145:I146) -> 0 | J144: =SUM( J145:J146) -> 0 | K144: =SUM( K145:K146) -> 0 | P144: 900
D145: 31.1 | E145: по одноставочному тарифу | F145: 2590 | G145: 0
D146: 31.2 | E146: по двухставочному тарифу: | F146: 2600 | G146: 0 | H146: =H147+H148 -> 0 | I146: =I147+I148 -> 0 | J146: =J147+J148 -> 0 | K146: =K147+K148 -> 0
D147: 31.2.1 | E147: мощность | F147: 2610 | G147: 0 | P147: 920
D148: 31.2.2 | E148: компенсация потерь | F148: 2620 | G148: 0 | P148: 910
E150: Должностное лицо, ответственное за | F150: =IF(Титульный!G45="","",Титульный!G45) -> инженер ОГЭ | I150: =IF(Титульный!G44="","",Титульный!G44) -> Круглова Татьяна Владимировна
E151: предоставление статистической информации | F151: (должность) | I151: (Ф.И.О.) | M151: (подпись)
E152: (лицо, уполномоченное предоставлять
E153: статистическую информацию от имени | F153: =IF(Титульный!G46="","",Титульный!G46) -> (846) 228-24-57 | J153: «____» _________20__ год
E154: юридического лица) | F154: (номер контактного телефона) | J154: (дата составления документа)

Sheet Комментарии
D8: Комментарии
D9: =IF(org="","Не определено",org) -> АО "Самарская кабельная компания"
D11: № п/п | E11: Комментарий
D12: 1 | E12: 2
D13: 0
C14: О | D14: 1 | E14: Стоимость услуг (с учетом НДС) по передаче эл.энергии, выставленных ПАО "МРСК Волги" за ноябрь 2018 г. в адрес АО "СКК" составляет 444,77217 тыс. руб.
C15: О | D15: 2 | E15: Стоимость услуг (с учетом НДС) по передаче эл.энергии, выставленных ООО "СамараСеть" за ноябрь 2018 г. в адрес АО "СКК" составляет 82,63623 тыс. руб.
C16: О | D16: 3 | E16: Стоимость эл.эн., приобретаемой в целях компенсации потерь на потребителей у ПАО "Самараэнерго" за ноябрь 2018 года составили 161,85768 тыс.руб. Цены указаны с учетом НДС.
E17: Добавить комментарий

Sheet Проверка
B2: Результат проверки
B3: =IF(org="","Не определено",org) -> АО "Самарская кабельная компания"
B5: Ссылка | C5: Причина | D5: Статус

Sheet Statistic (hidden)
A1: 44
A2: 06.09.2018 19:26:20 | B2: 14.0 | C2: Windows (32-bit) NT 6.01
A3: 11.09.2018 18:16:52 | B3: 14.0 | C3: Windows (32-bit) NT 6.01
A4: 11.09.2018 20:57:11 | B4: 14.0 | C4: Windows (32-bit) NT 6.01
A5: 12.09.2018 09:35:26 | B5: 14.0 | C5: Windows (32-bit) NT 6.01
A6: 12.09.2018 10:24:58 | B6: 14.0 | C6: Windows (32-bit) NT 6.01
A7: 12.09.2018 16:27:05 | B7: 14.0 | C7: Windows (32-bit) NT 6.01
A8: 13.09.2018 15:09:23 | B8: 14.0 | C8: Windows (32-bit) NT 6.01
A9: 13.09.2018 16:04:22 | B9: 14.0 | C9: Windows (32-bit) NT 6.01
A10: 13.09.2018 16:05:18 | B10: 14.0 | C10: Windows (32-bit) NT 6.01
A11: 13.09.2018 19:14:38 | B11: 14.0 | C11: Windows (32-bit) NT 6.01
A12: 14.09.2018 11:13:01 | B12: 14.0 | C12: Windows (32-bit) NT 6.01
A13: 14.09.2018 11:18:37 | B13: 14.0 | C13: Windows (32-bit) NT 6.01
A14: 17.09.2018 21:09:54 | B14: 14.0 | C14: Windows (32-bit) NT 6.01
A15: 18.09.2018 10:38:31 | B15: 14.0 | C15: Windows (32-bit) NT 6.01
A16: 18.09.2018 12:43:39 | B16: 14.0 | C16: Windows (32-bit) NT 6.01
A17: 18.09.2018 12:47:52 | B17: 14.0 | C17: Windows (32-bit) NT 6.01
A18: 18.09.2018 12:54:00 | B18: 14.0 | C18: Windows (32-bit) NT 6.01
A19: 18.09.2018 12:57:51 | B19: 14.0 | C19: Windows (32-bit) NT 6.01
A20: 18.09.2018 13:09:47 | B20: 14.0 | C20: Windows (32-bit) NT 6.01
A21: 18.09.2018 13:11:28 | B21: 14.0 | C21: Windows (32-bit) NT 6.01
A22: 18.09.2018 13:28:28 | B22: 14.0 | C22: Windows (32-bit) NT 6.01
A23: 18.09.2018 15:52:57 | B23: 14.0 | C23: Windows (32-bit) NT 6.01
A24: 18.09.2018 17:01:38 | B24: 14.0 | C24: Windows (32-bit) NT 6.01
A25: 18.09.2018 18:14:48 | B25: 14.0 | C25: Windows (32-bit) NT 6.01
A26: 19.09.2018 16:09:09 | B26: 14.0 | C26: Windows (32-bit) NT 6.01
A27: 19.09.2018 18:23:43 | B27: 14.0 | C27: Windows (32-bit) NT 6.01
A28: 20.09.2018 10:53:47 | B28: 14.0 | C28: Windows (32-bit) NT 6.01
A29: 20.09.2018 11:00:09 | B29: 14.0 | C29: Windows (32-bit) NT 6.01
A30: 20.09.2018 11:51:55 | B30: 14.0 | C30: Windows (32-bit) NT 6.01
A31: 20.09.2018 12:24:20 | B31: 14.0 | C31: Windows (32-bit) NT 6.01
A32: 20.09.2018 15:06:45 | B32: 14.0 | C32: Windows (32-bit) NT 6.01
A33: 20.09.2018 15:26:56 | B33: 14.0 | C33: Windows (32-bit) NT 6.01
A34: 21.09.2018 13:25:15 | B34: 14.0 | C34: Windows (32-bit) NT 6.01
A35: 21.09.2018 15:22:58 | B35: 14.0 | C35: Windows (32-bit) NT 6.01
A36: 21.09.2018 15:42:42 | B36: 14.0 | C36: Windows (32-bit) NT 6.01
A37: 21.09.2018 16:03:56 | B37: 14.0 | C37: Windows (32-bit) NT 6.01
A38: 21.09.2018 20:18:40 | B38: 14.0 | C38: Windows (32-bit) NT 6.01
A39: 22.09.2018 17:11:07 | B39: 14.0 | C39: Windows (32-bit) NT 6.01
A40: 23.09.2018 20:21:15 | B40: 14.0 | C40: Windows (32-bit) NT 6.01
A41: 05.12.2018 08:29:25 | B41: 12.0 | C41: Windows (32-bit) NT 6.02
A42: 11.12.2018 11:03:02 | B42: 11.0 | C42: Windows (32-bit) NT 5.01
A43: 24.12.2018 08:32:12 | B43: 11.0 | C43: Windows (32-bit) NT 5.01
A44: 25.12.2018 09:15:42 | B44: 11.0 | C44: Windows (32-bit) NT 5.01

Sheet TEHSHEET (hidden)
B1: Алтайский край | D1: MONTH | E1: YEAR | F1: DaNet | G1: type_report
A2: 0 | B2: Амурская область | D2: январь | E2: 2018 | F2: Да | G2: В целом по организации
B3: Архангельская область | D3: февраль | E3: 2019 | F3: Нет | G3: По обособленному подразделению
B4: Астраханская область | D4: март | E4: 2020
B5: Белгородская область | D5: апрель | E5: 2021
B6: Брянская область | D6: май | E6: 2022
B7: Владимирская область | D7: июнь
B8: Волгоградская область | D8: июль
B9: Вологодская область | D9: август
B10: Воронежская область | D10: сентябрь
B11: г.Байконур | D11: октябрь
B12: г. Москва | D12: ноябрь
B13: г.Санкт-Петербург | D13: декабрь
B14: г.Севастополь | D14: год
B15: Еврейская автономная область
B16: Забайкальский край
B17: Ивановская область
B18: Иркутская область
B19: Кабардино-Балкарская республика
B20: Калининградская область
B21: Калужская область
B22: Камчатский край | D22: URL_FORMAT
B23: Карачаево-Черкесская республика | D23: https://portal.eias.ru/Portal/DownloadPage.aspx?type=12&guid=????????-????-????-????-????????????
B24: Кемеровская область | D24: MSG_URL
B25: Кировская область | D25: ="Необходимо ввести ссылку на обосновывающие материалы в формате: """ & URL_FORMAT & """ (смотри раздел ""Методология заполнения"" листа ""Инструкция"")" -> Необходимо ввести ссылку на обосновывающие материалы в формате: "https://portal.eias.ru/Portal/DownloadPage.aspx?type=12&guid=????????-????-????-????-????????????" (смотри раздел "Методология заполнения" листа "Инструкция")
B26: Костромская область
B27: Краснодарский край
B28: Красноярский край
B29: Курганская область
B30: Курская область
B31: Ленинградская область
B32: Липецкая область
B33: Магаданская область
B34: Московская область
B35: Мурманская область
B36: Ненецкий автономный округ
B37: Нижегородская область
B38: Новгородская область
B39: Новосибирская область
B40: Омская область
B41: Оренбургская область
B42: Орловская область
B43: Пензенская область
B44: Пермский край
B45: Приморский край
B46: Псковская область
B47: Республика Адыгея
B48: Республика Алтай
B49: Республика Башкортостан
B50: Республика Бурятия
B51: Республика Дагестан
B52: Республика Ингушетия
B53: Республика Калмыкия
B54: Республика Карелия
B55: Республика Коми
B56: Республика Крым
B57: Республика Марий Эл
B58: Республика Мордовия
B59: Республика Саха (Якутия)
B60: Республика Северная Осетия-Алания
B61: Республика Татарстан
B62: Республика Тыва
B63: Республика Хакасия
B64: Ростовская область
B65: Рязанская область
B66: Самарская область
B67: Саратовская область
B68: Сахалинская область
B69: Свердловская область
B70: Смоленская область
B71: Ставропольский край
B72: Тамбовская область
B73: Тверская область
B74: Томская область
B75: Тульская область
B76: Тюменская область
B77: Удмуртская республика
B78: Ульяновская область
B79: Хабаровский край
B80: Ханты-Мансийский автономный округ
B81: Челябинская область
B82: Чеченская республика
B83: Чувашская республика
B84: Чукотский автономный округ
B85: Ямало-Ненецкий автономный округ
B86: Ярославская область

Sheet et_union (hidden)
A2: et_com
C3: О | D3: 1
A4: et_org
G5: =SUM(H5:K5) -> 0

Sheet AllSheetsInThisWorkbook (hidden)
A1: Расчетные листы | B1: Скрытые листы
A2: Инструкция | B2: Statistic
A3: Лог обновления | B3: TEHSHEET
A4: Титульный | B4: et_union
A5: Отпуск ЭЭ сет организациями | B5: AllSheetsInThisWorkbook
A6: Комментарии | B6: mod_01
A7: Проверка | B7: mod_11
B8: modComm
B9: modListProv
B10: modButton
B11: modInstruction
B12: modHTTP
B13: REESTR_ORG
B14: REESTR_FIL
B15: REESTR_MO
B16: REESTR_EGRUL
B17: modfrmRegion
B18: modfrmReestr
B19: modfrmFindEGRUL
B20: modfrmCheckUpdates
B21: modReestr
B22: modUpdTemplMain
B23: modHyperlink
B24: modClassifierValidate

Sheet mod_01 (hidden)

Sheet mod_11 (hidden)

Sheet modComm (hidden)

Sheet modListProv (hidden)

Sheet modButton (hidden)

Sheet modInstruction (hidden)

Sheet modHTTP (hidden)

Sheet REESTR_ORG (hidden)
B1: REGION_ID | C1: REGION_NAME | D1: MR_NAME | E1: OKTMR_NAME | F1: MO_NAME | G1: OKTMO_NAME | H1: RST_ORG_ID | I1: ORG_NAME | J1: INN_NAME | K1: KPP_NAME | L1: ORG_START_DATE | M1: ORG_END_DATE | N1: VDET_START_DATE | O1: VDET_END_DATE | P1: VDET_NAME | Q1: VDET_NAME_LIST | R1: VDET_FULL_NAME_LIST
A2: 1 | B2: 2638 | C2: Самарская область | H2: 26322473 | I2: АО "Арконик СМЗ" | J2: 6310000160 | K2: 631050001 | Q2: РСО | R2: /Электроэнергетика/Передача ЭЭ/РСО
A3: 2 | B3: 2638 | C3: Самарская область | H3: 26783848 | I3: АО "Водоканал" | J3: 6377011416 | K3: 637701001 | L3: 16-03-2010 00:00:00 | Q3: РСО | R3: /Электроэнергетика/Передача ЭЭ/РСО
A4: 3 | B4: 2638 | C4: Самарская область | H4: 26448590 | I4: АО "ЕЭСнК" | J4: 7727232575 | K4: 771401001 | Q4: Нерегулируемый сбыт | R4: /Электроэнергетика/Сбыт ЭЭ/Нерегулируемый сбыт
A5: 4 | B5: 2638 | C5: Самарская область | H5: 26448590 | I5: АО "ЕЭСнК" | J5: 7727232575 | K5: 771401001 | Q5: РСО | R5: /Электроэнергетика/Передача ЭЭ/РСО
A6: 5 | B6: 2638 | C6: Самарская область | H6: 26485575 | I6: АО "КНПЗ" | J6: 6314006396 | K6: 997250001 | L6: 15-10-2002 00:00:00 | Q6: Комбинированная выработка :: Некомбинированная выработка | R6: /Электроэнергетика/Производство ЭЭ/Комбинированная выработка :: /Электроэнергетика/Производство ЭЭ/Некомбинированная выработка
A7: 6 | B7: 2638 | C7: Самарская область | H7: 26485577 | I7: АО "Международный аэропорт "Курумоч" | J7: 6313036408 | K7: 631050001 | Q7: РСО | R7: /Электроэнергетика/Передача ЭЭ/РСО
A8: 7 | B8: 2638 | C8: Самарская область | H8: 26318885 | I8: АО "Межрегионэнергосбыт" | J8: 7705750968 | K8: 772901001 | Q8: Нерегулируемый сбыт | R8: /Электроэнергетика/Сбыт ЭЭ/Нерегулируемый сбыт
A9: 8 | B9: 2638 | C9: Самарская область | H9: 26318876 | I9: АО "Мосэнергосбыт" | J9: 7736520080 | K9: 997650001 | Q9: Нерегулируемый сбыт | R9: /Электроэнергетика/Сбыт ЭЭ/Нерегулируемый сбыт
A10: 9 | B10: 2638 | C10: Самарская область | H10: 26485720 | I10: АО "ННК" | J10: 6330017980 | K10: 631050001 | Q10: РСО | R10: /Электроэнергетика/Передача ЭЭ/РСО
A11: 10 | B11: 2638 | C11: Самарская область | H11: 26485720 | I11: АО "ННК" | J11: 6330017980 | K11: 631050001 | Q11: ГП :: Комбинированная выработка :: Некомбинированная выработка | R11: /Электроэнергетика/Сбыт ЭЭ/ГП :: /Электроэнергетика/Производство ЭЭ/Комбинированная выработка :: /Электроэнергетика/Производство ЭЭ/Некомбинированная выработка
A12: 11 | B12: 2638 | C12: Самарская область | H12: 27321299 | I12: АО "Оборонэнерго" филиал "Приволжский" | J12: 7704726225 | K12: 631743001 | Q12: РСО | R12: /Электроэнергетика/Передача ЭЭ/РСО
A13: 12 | B13: 2638 | C13: Самарская область | H13: 26617350 | I13: АО "Оборонэнергосбыт" | J13: 7704731218 | K13: 773043001 | L13: 23-03-2010 00:00:00 | Q13: ГП | R13: /Электроэнергетика/Сбыт ЭЭ/ГП
A14: 13 | B14: 2638 | C14: Самарская область | H14: 26501821 | I14: АО "Оптовая электрическая компания" | J14: 3444103821 | K14: 344401001 | Q14: Нерегулируемый сбыт | R14: /Электроэнергетика/Сбыт ЭЭ/Нерегулируемый сбыт
A15: 14 | B15: 2638 | C15: Самарская область | H15: 26322430 | I15: АО "Похвистневоэнерго" | J15: 6372020696 | K15: 637201001 | Q15: РСО | R15: /Электроэнергетика/Передача ЭЭ/РСО
A16: 15 | B16: 2638 | C16: Самарская область | H16: 26485687 | I16: АО "РКЦ "Прогресс" | J16: 6312139922 | K16: 997850001 | Q16: РСО | R16: /Электроэнергетика/Передача ЭЭ/РСО
A17: 16 | B17: 2638 | C17: Самарская область | H17: 28823140 | I17: АО "Самаранефтегаз" | J17: 6315229162 | K17: 997150001 | Q17: РСО | R17: /Электроэнергетика/Передача ЭЭ/РСО
A18: 17 | B18: 2638 | C18: Самарская область | H18: 26322459 | I18: АО "Самарская кабельная компания" | J18: 6318101450 | K18: 631801001 | Q18: РСО | R18: /Электроэнергетика/Передача ЭЭ/РСО
A19: 18 | B19: 2638 | C19: Самарская область | H19: 26322440 | I19: АО "Самарская сетевая компания" | J19: 6367047389 | K19: 631501001 | Q19: РСО | R19: /Электроэнергетика/Передача ЭЭ/РСО
A20: 19 | B20: 2638 | C20: Самарская область | H20: 26448586 | I20: АО "Сибурэнергоменеджмент" | J20: 7727276526 | K20: 366301001 | Q20: Нерегулируемый сбыт | R20: /Электроэнергетика/Сбыт ЭЭ/Нерегулируемый сбыт
A21: 20 | B21: 2638 | C21: Самарская область | H21: 26322432 | I21: АО "Сызранская городская электросеть" | J21: 6325064706 | K21: 632501001 | Q21: РСО | R21: /Электроэнергетика/Передача ЭЭ/РСО
A22: 21 | B22: 2638 | C22: Самарская область | H22: 26772152 | I22: АО "ТРАНСНЕФТЬ-ПРИКАМЬЕ" | J22: 1645000340 | K22: 590502001 | L22: 15-06-2004 00:00:00 | Q22: Комбинированная выработка | R22: /Электроэнергетика/Производство ЭЭ/Комбинированная выработка
A23: 22 | B23: 2638 | C23: Самарская область | H23: 28047458 | I23: АО "Тольяттисинтез" | J23: 6323106975 | K23: 632401001 | Q23: РСО | R23: /Электроэнергетика/Передача ЭЭ/РСО
A24: 23 | B24: 2638 | C24: Самарская область | H24: 30949378 | I24: АО "Транснефть - Прикамье" Ромашкинское РНУ | J24: 1645000340 | K24: 164902000 | Q24: Комбинированная выработка | R24: /Электроэнергетика/Производство ЭЭ/Комбинированная выработка
A25: 24 | B25: 2638 | C25: Самарская область | H25: 27831055 | I25: АО "Электросеть-Волга" | J25: 6313539056 | K25: 631301001 | Q25: РСО | R25: /Электроэнергетика/Передача ЭЭ/РСО
A26: 25 | B26: 2638 | C26: Самарская область | H26: 26485550 | I26: АО “Волгабурмаш” | J26: 6314041136 | K26: 631401001 | Q26: РСО | R26: /Электроэнергетика/Передача ЭЭ/РСО
A27: 26 | B27: 2638 | C27: Самарская область | H27: 26485717 | I27: АО “Новокуйбышевский нефтеперерабатывающий завод” | J27: 6330000553 | K27: 997150001 | L27: 15-10-2002 00:00:00 | Q27: Комбинированная выработка :: Некомбинированная выработка | R27: /Электроэнергетика/Производство ЭЭ/Комбинированная выработка :: /Электроэнергетика/Производство ЭЭ/Некомбинированная выработка
A28: 27 | B28: 2638 | C28: Самарская область | H28: 26485717 | I28: АО “Новокуйбышевский нефтеперерабатывающий завод” | J28: 6330000553 | K28: 997150001 | L28: 15-10-2002 00:00:00 | Q28: РСО | R28: /Электроэнергетика/Передача ЭЭ/РСО
A29: 28 | B29: 2638 | C29: Самарская область | H29: 26642616 | I29: АО “ОРЭС-Тольятти” | J29: 6166071494 | K29: 632401001 | Q29: РСО | R29: /Электроэнергетика/Передача ЭЭ/РСО
A30: 29 | B30: 2638 | C30: Самарская область | H30: 26485308 | I30: АО “РЭУ” “Самарский” | J30: 7714783092 | K30: 631143001 | Q30: РСО | R30: /Электроэнергетика/Передача ЭЭ/РСО
A31: 30 | B31: 2638 | C31: Самарская область | H31: 26495939 | I31: АО “САМАРСКИЙ ЗАВОД ЭЛЕКТРОМОНТАЖНЫХ ИЗДЕЛИЙ” | J31: 6318100022 | K31: 631801001 | Q31: РСО | R31: /Электроэнергетика/Передача ЭЭ/РСО
A32: 31 | B32: 2638 | C32: Самарская область | H32: 26495941 | I32: АО “САМАРСКИЙ КОМБИНАТ КЕРАМИЧЕСКИХ МАТЕРИАЛОВ” | J32: 6318101435 | K32: 631701001 | Q32: РСО | R32: /Электроэнергетика/Передача ЭЭ/РСО
A33: 32 | B33: 2638 | C33: Самарская область | H33: 26495867 | I33: АО “Самарагорэнергосбыт” | J33: 6316138990 | K33: 631601001 | Q33: ГП | R33: /Электроэнергетика/Сбыт ЭЭ/ГП
A34: 33 | B34: 2638 | C34: Самарская область | H34: 27331297 | I34: Акционерное общество "Оборонэнерго" - филиал "Уральский" | J34: 7704726225 | K34: 667243001 | Q34: РСО | R34: /Электроэнергетика/Передача ЭЭ/РСО
A35: 34 | B35: 2638 | C35: Самарская область | H35: 26318993 | I35: Акционерное общество "Свердловская энергогазовая компания", г.Екатеринбург | J35: 6670129804 | K35: 665801001 | Q35: Нерегулируемый сбыт | R35: /Электроэнергетика/Сбыт ЭЭ/Нерегулируемый сбыт
A36: 35 | B36: 2638 | C36: Самарская область | H36: 26495937 | I36: ГУЗ “Самарская психиатрическая больница” | J36: 6319011294 | K36: 631901001 | Q36: РСО | R36: /Электроэнергетика/Передача ЭЭ/РСО
A37: 36 | B37: 2638 | C37: Самарская область | H37: 26322464 | I37: ЗАО "Самарский опытно-экспериментальный завод" | J37: 6312000342 | K37: 631201001 | Q37: РСО | R37: /Электроэнергетика/Передача ЭЭ/РСО
A38: 37 | B38: 2638 | C38: Самарская область | H38: 26774814 | I38: ЗАО "Энергетика и связь строительства | J38: 6320005633 | K38: 632401001 | L38: 16-08-2002 00:00:00 | Q38: РСО | R38: /Электроэнергетика/Передача ЭЭ/РСО
A39: 38 | B39: 2638 | C39: Самарская область | H39: 26794617 | I39: ЗАО "ЭнергоГарантСервис" | J39: 6316153170 | K39: 631601001 | Q39: РСО | R39: /Электроэнергетика/Передача ЭЭ/РСО
A40: 39 | B40: 2638 | C40: Самарская область | H40: 26485187 | I40: ЗАО “Газэнергострой” | J40: 6315354893 | K40: 631501001 | Q40: Комбинированная выработка :: Некомбинированная выработка | R40: /Электроэнергетика/Производство ЭЭ/Комбинированная выработка :: /Электроэнергетика/Производство ЭЭ/Некомбинированная выработка
A41: 40 | B41: 2638 | C41: Самарская область | H41: 26642630 | I41: ЗАО “Дуплет” | J41: 6312084945 | K41: 631201001 | Q41: РСО | R41: /Электроэнергетика/Передача ЭЭ/РСО
A42: 41 | B42: 2638 | C42: Самарская область | H42: 26322428 | I42: ЗАО “САМАРСКИЕ ГОРОДСКИЕ ЭЛЕКТРИЧЕСКИЕ СЕТИ” | J42: 6316004884 | K42: 631050001 | Q42: РСО | R42: /Электроэнергетика/Передача ЭЭ/РСО
A43: 42 | B43: 2638 | C43: Самарская область | H43: 26485546 | I43: ЗАО “Самарский завод Нефтемаш” | J43: 6314007537 | K43: 631401001 | Q43: РСО | R43: /Электроэнергетика/Передача ЭЭ/РСО
A44: 43 | B44: 2638 | C44: Самарская область | H44: 26495943 | I44: ЗАО “Сызранская Керамика” | J44: 6325037100 | K44: 632501001 | Q44: РСО | R44: /Электроэнергетика/Передача ЭЭ/РСО
A45: 44 | B45: 2638 | C45: Самарская область | H45: 26495953 | I45: ЗАО “Энергоспецстрой” | J45: 6312055567 | K45: 631201001 | Q45: РСО | R45: /Электроэнергетика/Передача ЭЭ/РСО
A46: 45 | B46: 2638 | C46: Самарская область | H46: 26496069 | I46: Куйбышевская дирекция по энергообеспечению - структурное подразделение Трансэнерго - филиала ОАО "РЖД" | J46: 7708503727 | K46: 631145010 | Q46: РСО | R46: /Электроэнергетика/Передача ЭЭ/РСО
A47: 46 | B47: 2638 | C47: Самарская область | H47: 26322499 | I47: МП г.о. Самара “Самарский метрополитен” | J47: 6311013028 | K47: 631101001 | Q47: РСО | R47: /Электроэнергетика/Передача ЭЭ/РСО
A48: 47 | B48: 2638 | C48: Самарская область | H48: 26485191 | I48: МУП “Волжское ЖКХ” | J48: 6376002176 | K48: 637601001 | Q48: РСО | R48: /Электроэнергетика/Передача ЭЭ/РСО
A49: 48 | B49: 2638 | C49: Самарская область | H49: 26322469 | I49: ОАО "Магистраль" | J49: 6314007671 | K49: 631401001 | Q49: РСО | R49: /Электроэнергетика/Передача ЭЭ/РСО
A50: 49 | B50: 2638 | C50: Самарская область | H50: 26322424 | I50: ОАО "Производственная компания автокомпонент Сызрань" | J50: 6325001992 | K50: 631050001 | Q50: РСО | R50: /Электроэнергетика/Передача ЭЭ/РСО
A51: 50 | B51: 2638 | C51: Самарская область | H51: 26522960 | I51: ОАО "Промышленная энергетика" | J51: 7705736716 | K51: 770501001 | Q51: Нерегулируемый сбыт | R51: /Электроэнергетика/Сбыт ЭЭ/Нерегулируемый сбыт
A52: 51 | B52: 2638 | C52: Самарская область | H52: 26322476 | I52: ОАО "СтройДом" | J52: 6317020670 | K52: 631701001 | Q52: РСО | R52: /Электроэнергетика/Передача ЭЭ/РСО
A53: 52 | B53: 2638 | C53: Самарская область | H53: 26485670 | I53: ОАО “1253 ЦРБ РЛВ” | J53: 6313535005 | K53: 631301001 | Q53: РСО | R53: /Электроэнергетика/Передача ЭЭ/РСО
A54: 53 | B54: 2638 | C54: Самарская область | H54: 26322502 | I54: ОАО “Авиакор - авиационный завод” | J54: 6312040056 | K54: 631201001 | Q54: РСО | R54: /Электроэнергетика/Передача ЭЭ/РСО
A55: 54 | B55: 2638 | C55: Самарская область | H55: 26322503 | I55: ОАО “ВОЛГОЦЕММАШ” | J55: 6320001928 | K55: 632001001 | Q55: РСО | R55: /Электроэнергетика/Передача ЭЭ/РСО
A56: 55 | B56: 2638 | C56: Самарская область | H56: 26322471 | I56: ОАО “МЕТАЛЛИСТ-САМАРА” | J56: 6318105574 | K56: 631801001 | Q56: РСО | R56: /Электроэнергетика/Передача ЭЭ/РСО
A57: 56 | B57: 2638 | C57: Самарская область | H57: 26322474 | I57: ОАО “САМАРСКИЙ ПОДШИПНИКОВЫЙ ЗАВОД” | J57: 6318100431 | K57: 631801001 | Q57: РСО | R57: /Электроэнергетика/Передача ЭЭ/РСО
A58: 57 | B58: 2638 | C58: Самарская область | H58: 26642639 | I58: ОАО “САМАРСКИЙ ТРАНСФОРМАТОР” | J58: 6311012779 | K58: 631101001 | Q58: РСО | R58: /Электроэнергетика/Передача ЭЭ/РСО
A59: 58 | B59: 2638 | C59: Самарская область | H59: 26495947 | I59: ОАО “Связьтранснефть” (филиал - Средневолжское ПТУС) | J59: 7723011906 | K59: 771501001 | Q59: РСО | R59: /Электроэнергетика/Передача ЭЭ/РСО
A60: 59 | B60: 2638 | C60: Самарская область | H60: 26485502 | I60: ОАО “ТЯЖМАШ” | J60: 6325000660 | K60: 631050001 | Q60: РСО | R60: /Электроэнергетика/Передача ЭЭ/РСО
A61: 60 | B61: 2638 | C61: Самарская область | H61: 26495865 | I61: ОАО “Тольяттинская энергосбытовая компания” | J61: 6321211371 | K61: 631050001 | Q61: ГП | R61: /Электроэнергетика/Сбыт ЭЭ/ГП
A62: 61 | B62: 2638 | C62: Самарская область | H62: 26322431 | I62: ОАО “ЭЛЕКТРОСЕТЬ” | J62: 6320003682 | K62: 632001001 | Q62: РСО | R62: /Электроэнергетика/Передача ЭЭ/РСО
A63: 62 | B63: 2638 | C63: Самарская область | H63: 27566882 | I63: ОАО «Завод ЖБИ-№3» | J63: 6319009947 | K63: 631900994 | Q63: РСО | R63: /Электроэнергетика/Передача ЭЭ/РСО
A64: 63 | B64: 2638 | C64: Самарская область | H64: 26837653 | I64: ОАО ГК «ТНС энерго» | J64: 7705541227 | K64: 770201001 | Q64: Нерегулируемый сбыт | R64: /Электроэнергетика/Сбыт ЭЭ/Нерегулируемый сбыт
A65: 64 | B65: 2638 | C65: Самарская область | H65: 26621273 | I65: ОАО РЖД "Куйбышевская железная дорога" | J65: 7708503727 | K65: 631131002 | Q65: РСО | R65: /Электроэнергетика/Передача ЭЭ/РСО
A66: 65 | B66: 2638 | C66: Самарская область | H66: 26485674 | I66: ОАО Самарский завод “Экран” | J66: 6319033724 | K66: 631901001 | Q66: РСО | R66: /Электроэнергетика/Передача ЭЭ/РСО
A67: 66 | B67: 2638 | C67: Самарская область | H67: 27708360 | I67: ООО "АВИАСПЕЦМОНТАЖ" | J67: 6312054482 | K67: 631201001 | Q67: РСО | R67: /Электроэнергетика/Передача ЭЭ/РСО
A68: 67 | B68: 2638 | C68: Самарская область | H68: 27675710 | I68: ООО "АВТОГРАД-ВОДОКАНАЛ" | J68: 6321280368 | K68: 632101001 | Q68: РСО | R68: /Электроэнергетика/Передача ЭЭ/РСО
A69: 68 | B69: 2638 | C69: Самарская область | H69: 26322451 | I69: ООО "БИАКСПЛЕН" | J69: 5244013331 | K69: 633043001 | Q69: РСО | R69: /Электроэнергетика/Передача ЭЭ/РСО
A70: 69 | B70: 2638 | C70: Самарская область | H70: 26794654 | I70: ООО "Белкам-Контракт" | J70: 1834024515 | K70: 183650001 | Q70: Нерегулируемый сбыт | R70: /Электроэнергетика/Сбыт ЭЭ/Нерегулируемый сбыт
A71: 70 | B71: 2638 | C71: Самарская область | H71: 26625838 | I71: ООО "ВолгаЭнергоИнжениринг" | J71: 6315566030 | K71: 631501001 | Q71: РСО | R71: /Электроэнергетика/Передача ЭЭ/РСО
A72: 71 | B72: 2638 | C72: Самарская область | H72: 26318982 | I72: ООО "Волжский энергосервис" | J72: 6376062915 | K72: 637601001 | Q72: Нерегулируемый сбыт | R72: /Электроэнергетика/Сбыт ЭЭ/Нерегулируемый сбыт
A73: 72 | B73: 2638 | C73: Самарская область | H73: 26836349 | I73: ООО "Горный холод" | J73: 6322028178 | K73: 631701001 | Q73: РСО | R73: /Электроэнергетика/Передача ЭЭ/РСО
A74: 73 | B74: 2638 | C74: Самарская область | H74: 26427401 | I74: ООО "Дизаж М" | J74: 7728587330 | K74: 772801001 | Q74: Нерегулируемый сбыт | R74: /Электроэнергетика/Сбыт ЭЭ/Нерегулируемый сбыт
A75: 74 | B75: 2638 | C75: Самарская область | H75: 28263191 | I75: ООО "Долина-Центр-С" | J75: 6316079449 | K75: 631501001 | Q75: РСО | R75: /Электроэнергетика/Передача ЭЭ/РСО
A76: 75 | B76: 2638 | C76: Самарская область | H76: 30898982 | I76: ООО "ЕЭС-Гарант" | J76: 5024173259 | K76: 561243001 | Q76: Нерегулируемый сбыт | R76: /Электроэнергетика/Сбыт ЭЭ/Нерегулируемый сбыт
A77: 76 | B77: 2638 | C77: Самарская область | H77: 28829524 | I77: ООО "ЕЭС.Гарант" | J77: 5024104671 | K77: 631545001 | Q77: Нерегулируемый сбыт | R77: /Электроэнергетика/Сбыт ЭЭ/Нерегулируемый сбыт
A78: 77 | B78: 2638 | C78: Самарская область | H78: 26495927 | I78: ООО "ЖЭУ 110 "А" | J78: 6315567468 | K78: 631501001 | L78: 01-01-2011 00:00:00 | Q78: РСО | R78: /Электроэнергетика/Передача ЭЭ/РСО
A79: 78 | B79: 2638 | C79: Самарская область | H79: 26322450 | I79: ООО "Инженерные сети" | J79: 6318142978 | K79: 631801001 | Q79: РСО | R79: /Электроэнергетика/Передача ЭЭ/РСО
A80: 79 | B80: 2638 | C80: Самарская область | H80: 27831126 | I80: ООО "Компания Стрейд" | J80: 6316090450 | K80: 631601001 | Q80: РСО | R80: /Электроэнергетика/Передача ЭЭ/РСО
A81: 80 | B81: 2638 | C81: Самарская область | H81: 26803943 | I81: ООО "Лесэнерго" | J81: 6318100093 | K81: 631201001 | L81: 04-04-2011 00:00:00 | Q81: РСО | R81: /Электроэнергетика/Передача ЭЭ/РСО
A82: 81 | B82: 2638 | C82: Самарская область | H82: 28147378 | I82: ООО "МагнитЭнерго" | J82: 7715902899 | K82: 231001001 | Q82: Нерегулируемый сбыт | R82: /Электроэнергетика/Сбыт ЭЭ/Нерегулируемый сбыт
A83: 82 | B83: 2638 | C83: Самарская область | H83: 26318983 | I83: ООО "НК-Энергосбыт" | J83: 6313134243 | K83: 631301001 | Q83: Нерегулируемый сбыт | R83: /Электроэнергетика/Сбыт ЭЭ/Нерегулируемый сбыт
A84: 83 | B84: 2638 | C84: Самарская область | H84: 26322484 | I84: ООО "Отдых" | J84: 6325000237 | K84: 632501001 | Q84: РСО | R84: /Электроэнергетика/Передача ЭЭ/РСО
A85: 84 | B85: 2638 | C85: Самарская область | H85: 31173145 | I85: ООО "ПЭСК" | J85: 6324049550 | K85: 632401001 | Q85: Нерегулируемый сбыт | R85: /Электроэнергетика/Сбыт ЭЭ/Нерегулируемый сбыт
A86: 85 | B86: 2638 | C86: Самарская область | H86: 27831116 | I86: ООО "Поволжская сетевая компания" | J86: 6324023834 | K86: 632401001 | Q86: РСО | R86: /Электроэнергетика/Передача ЭЭ/РСО
A87: 86 | B87: 2638 | C87: Самарская область | H87: 26503168 | I87: ООО "ПромЭнерго" | J87: 6316136633 | K87: 631601001 | Q87: Нерегулируемый сбыт | R87: /Электроэнергетика/Сбыт ЭЭ/Нерегулируемый сбыт
A88: 87 | B88: 2638 | C88: Самарская область | H88: 26416221 | I88: ООО "РН-Энерго" | J88: 7706525041 | K88: 997650001 | L88: 02-05-2012 00:00:00 | Q88: Нерегулируемый сбыт | R88: /Электроэнергетика/Сбыт ЭЭ/Нерегулируемый сбыт
A89: 88 | B89: 2638 | C89: Самарская область | H89: 28495004 | I89: ООО "РРСК" | J89: 5907024108 | K89: 645043001 | Q89: РСО | R89: /Электроэнергетика/Передача ЭЭ/РСО
A90: 89 | B90: 2638 | C90: Самарская область | H90: 27666778 | I90: ООО "РТ-Энерготрейдинг" | J90: 7729667652 | K90: 772901001 | L90: 18-10-2010 00:00:00 | Q90: Нерегулируемый сбыт | R90: /Электроэнергетика/Сбыт ЭЭ/Нерегулируемый сбыт
A91: 90 | B91: 2638 | C91: Самарская область | H91: 26318820 | I91: ООО "Региональная энергосбытовая компания" (ОПП) | J91: 4633017746 | K91: 463301001 | Q91: Нерегулируемый сбыт | R91: /Электроэнергетика/Сбыт ЭЭ/Нерегулируемый сбыт
A92: 91 | B92: 2638 | C92: Самарская область | H92: 26836345 | I92: ООО "Региональные электрические сети" | J92: 6318183371 | K92: 631801001 | Q92: РСО | R92: /Электроэнергетика/Передача ЭЭ/РСО
A93: 92 | B93: 2638 | C93: Самарская область | H93: 26406211 | I93: ООО "Русэнергоресурс" | J93: 7706288496 | K93: 770601001 | Q93: Нерегулируемый сбыт | R93: /Электроэнергетика/Сбыт ЭЭ/Нерегулируемый сбыт
A94: 93 | B94: 2638 | C94: Самарская область | H94: 26502786 | I94: ООО "Русэнергосбыт" | J94: 7706284124 | K94: 770601001 | Q94: Нерегулируемый сбыт | R94: /Электроэнергетика/Сбыт ЭЭ/Нерегулируемый сбыт
A95: 94 | B95: 2638 | C95: Самарская область | H95: 26383164 | I95: ООО "СВГК" | J95: 6314012801 | K95: 631050001 | Q95: РСО | R95: /Электроэнергетика/Передача ЭЭ/РСО
A96: 95 | B96: 2638 | C96: Самарская область | H96: 30387746 | I96: ООО "СВЭСКО" | J96: 6324062030 | K96: 632401001 | Q96: Нерегулируемый сбыт | R96: /Электроэнергетика/Сбыт ЭЭ/Нерегулируемый сбыт
A97: 96 | B97: 2638 | C97: Самарская область | H97: 26485397 | I97: ООО "СИБУР Тольятти" | J97: 6323049893 | K97: 631050001 | L97: 14-05-1999 00:00:00 | Q97: РСО | R97: /Электроэнергетика/Передача ЭЭ/РСО
A98: 97 | B98: 2638 | C98: Самарская область | H98: 30898488 | I98: ООО "СК-Энерго" | J98: 6316127325 | K98: 631601001 | Q98: РСО | R98: /Электроэнергетика/Передача ЭЭ/РСО
A99: 98 | B99: 2638 | C99: Самарская область | H99: 28262841 | I99: ООО "СПЕЦАВТОМАТИКА" | J99: 6323074392 | K99: 632401001 | Q99: РСО | R99: /Электроэнергетика/Передача ЭЭ/РСО
A100: 99 | B100: 2638 | C100: Самарская область | H100: 26322492 | I100: ООО "СТРОММАШИНА" | J100: 6318128028 | K100: 631801001 | Q100: РСО | R100: /Электроэнергетика/Передача ЭЭ/РСО
A101: 100 | B101: 2638 | C101: Самарская область | H101: 28798366 | I101: ООО "СамараСеть" | J101: 6316128600 | K101: 631601001 | Q101: РСО | R101: /Электроэнергетика/Передача ЭЭ/РСО
A102: 101 | B102: 2638 | C102: Самарская область | H102: 26322488 | I102: ООО "Самараавтотранс-2000" | J102: 6367006706 | K102: 636701001 | Q102: РСО | R102: /Электроэнергетика/Передача ЭЭ/РСО
A103: 102 | B103: 2638 | C103: Самарская область | H103: 28967647 | I103: ООО "Самэнерго" | J103: 6325017696 | K103: 632501001 | Q103: ФСК :: РСО | R103: /Электроэнергетика/Передача ЭЭ/ФСК :: /Электроэнергетика/Передача ЭЭ/РСО
A104: 103 | B104: 2638 | C104: Самарская область | H104: 28869552 | I104: ООО "Сатурн-Энерго" | J104: 6316200776 | K104: 631601001 | Q104: РСО | R104: /Электроэнергетика/Передача ЭЭ/РСО
A105: 104 | B105: 2638 | C105: Самарская область | H105: 26318984 | I105: ООО "Сбыт-Энерго" | J105: 6312061360 | K105: 631201001 | Q105: Нерегулируемый сбыт | R105: /Электроэнергетика/Сбыт ЭЭ/Нерегулируемый сбыт
A106: 105 | B106: 2638 | C106: Самарская область | H106: 27831106 | I106: ООО "Сетевая компания" | J106: 6315642179 | K106: 631501001 | Q106: РСО | R106: /Электроэнергетика/Передача ЭЭ/РСО
A107: 106 | B107: 2638 | C107: Самарская область | H107: 26322491 | I107: ООО "Сетевик" | J107: 6362014005 | K107: 636201001 | Q107: РСО | R107: /Электроэнергетика/Передача ЭЭ/РСО
A108: 107 | B108: 2638 | C108: Самарская область | H108: 27881756 | I108: ООО "Синэргия" | J108: 6316176450 | K108: 631601001 | Q108: РСО | R108: /Электроэнергетика/Передача ЭЭ/РСО
A109: 108 | B109: 2638 | C109: Самарская область | H109: 31061489 | I109: ООО "Солар Системс" | J109: 7728872602 | K109: 770301001 | L109: 11-03-2014 00:00:00 | Q109: Некомбинированная выработка | R109: /Электроэнергетика/Производство ЭЭ/Некомбинированная выработка
A110: 109 | B110: 2638 | C110: Самарская область | H110: 27566615 | I110: ООО "Солли-Энерго" | J110: 6350012275 | K110: 635001001 | Q110: РСО | R110: /Электроэнергетика/Передача ЭЭ/РСО
A111: 110 | B111: 2638 | C111: Самарская область | H111: 30400026 | I111: ООО "ТЭС" | J111: 6325065530 | K111: 632501001 | Q111: РСО | R111: /Электроэнергетика/Передача ЭЭ/РСО
A112: 111 | B112: 2638 | C112: Самарская область | H112: 30400026 | I112: ООО "ТЭС" | J112: 6325065530 | K112: 632501001 | Q112: ФСК | R112: /Электроэнергетика/Передача ЭЭ/ФСК
A113: 112 | B113: 2638 | C113: Самарская область | H113: 30953636 | I113: ООО "Технологии универсальных решений" | J113: 6315657305 | K113: 631501001 | Q113: РСО | R113: /Электроэнергетика/Передача ЭЭ/РСО
A114: 113 | B114: 2638 | C114: Самарская область | H114: 26318985 | I114: ООО "ТольяттиЭнергоСбыт" | J114: 6321144460 | K114: 632401001 | Q114: ГП | R114: /Электроэнергетика/Сбыт ЭЭ/ГП
A115: 114 | B115: 2638 | C115: Самарская область | H115: 26611514 | I115: ООО "ТранснефтьЭлектросетьСервис" | J115: 6311049306 | K115: 631101001 | L115: 19-10-2000 00:00:00 | Q115: РСО | R115: /Электроэнергетика/Передача ЭЭ/РСО
A116: 115 | B116: 2638 | C116: Самарская область | H116: 26497668 | I116: ООО "Транснефтьэнерго" | J116: 7703552167 | K116: 772301001 | L116: 01-07-2009 00:00:00 | Q116: Нерегулируемый сбыт | R116: /Электроэнергетика/Сбыт ЭЭ/Нерегулируемый сбыт
A117: 116 | B117: 2638 | C117: Самарская область | H117: 30898555 | I117: ООО "ЭНЕРГОХОЛДИНГ" | J117: 6330047174 | K117: 633001001 | Q117: РСО | R117: /Электроэнергетика/Передача ЭЭ/РСО
A118: 117 | B118: 2638 | C118: Самарская область | H118: 30802839 | I118: ООО "Электросетевая транспортная компания" | J118: 6324071203 | K118: 632401001 | Q118: РСО | R118: /Электроэнергетика/Передача ЭЭ/РСО
A119: 118 | B119: 2638 | C119: Самарская область | H119: 30802839 | I119: ООО "Электросетевая транспортная компания" | J119: 6324071203 | K119: 632401001 | Q119: ФСК | R119: /Электроэнергетика/Передача ЭЭ/ФСК
A120: 119 | B120: 2638 | C120: Самарская область | H120: 30429848 | I120: ООО "Электрощит" - Энергосеть" | J120: 6313548011 | K120: 631301001 | Q120: РСО | R120: /Электроэнергетика/Передача ЭЭ/РСО
A121: 120 | B121: 2638 | C121: Самарская область | H121: 26836331 | I121: ООО "Энергетик" | J121: 6325033916 | K121: 632501001 | Q121: РСО | R121: /Электроэнергетика/Передача ЭЭ/РСО
A122: 121 | B122: 2638 | C122: Самарская область | H122: 26322433 | I122: ООО "Энерго" | J122: 6312038138 | K122: 631201001 | Q122: РСО | R122: /Электроэнергетика/Передача ЭЭ/РСО
A123: 122 | B123: 2638 | C123: Самарская область | H123: 27671102 | I123: ООО "Энерго-центр" | J123: 7801523580 | K123: 631601100 | L123: 17-06-2011 00:00:00 | Q123: РСО | R123: /Электроэнергетика/Передача ЭЭ/РСО
A124: 123 | B124: 2638 | C124: Самарская область | H124: 31081937 | I124: ООО "ЭнергоСтандарт" | J124: 6325071333 | K124: 632501001 | Q124: РСО | R124: /Электроэнергетика/Передача ЭЭ/РСО
A125: 124 | B125: 2638 | C125: Самарская область | H125: 26322439 | I125: ООО "Энергонефть Самара" | J125: 6340007068 | K125: 634001001 | Q125: РСО | R125: /Электроэнергетика/Передача ЭЭ/РСО
A126: 125 | B126: 2638 | C126: Самарская область | H126: 30875705 | I126: ООО "Юг сети" | J126: 6319163931 | K126: 631901001 | Q126: РСО | R126: /Электроэнергетика/Передача ЭЭ/РСО
A127: 126 | B127: 2638 | C127: Самарская область | H127: 26550519 | I127: ООО “Бизнес Инфо” | J127: 6316141200 | K127: 631601001 | Q127: РСО | R127: /Электроэнергетика/Передача ЭЭ/РСО
A128: 127 | B128: 2638 | C128: Самарская область | H128: 26485685 | I128: ООО “ВЭТ” | J128: 6318160247 | K128: 631801001 | Q128: РСО | R128: /Электроэнергетика/Передача ЭЭ/РСО
A129: 128 | B129: 2638 | C129: Самарская область | H129: 26495922 | I129: ООО “Волжский продукт” | J129: 6367005438 | K129: 631801001 | Q129: РСО | R129: /Электроэнергетика/Передача ЭЭ/РСО
A130: 129 | B130: 2638 | C130: Самарская область | H130: 26642635 | I130: ООО “ДМТ” | J130: 6371005342 | K130: 637101001 | Q130: РСО | R130: /Электроэнергетика/Передача ЭЭ/РСО
A131: 130 | B131: 2638 | C131: Самарская область | H131: 26485645 | I131: ООО “Завод приборных подшипников” | J131: 6367032625 | K131: 631201001 | Q131: РСО | R131: /Электроэнергетика/Передача ЭЭ/РСО
A132: 131 | B132: 2638 | C132: Самарская область | H132: 26495931 | I132: ООО “Засамарская сетевая компания” | J132: 6313172249 | K132: 631201001 | Q132: РСО | R132: /Электроэнергетика/Передача ЭЭ/РСО
A133: 132 | B133: 2638 | C133: Самарская область | H133: 26641433 | I133: ООО “Объединенная сетевая компания” | J133: 6315627741 | K133: 631501001 | Q133: РСО | R133: /Электроэнергетика/Передача ЭЭ/РСО
A134: 133 | B134: 2638 | C134: Самарская область | H134: 26642643 | I134: ООО “Реммаш-Сервис” | J134: 6340006924 | K134: 634001001 | Q134: РСО | R134: /Электроэнергетика/Передача ЭЭ/РСО
A135: 134 | B135: 2638 | C135: Самарская область | H135: 26322487 | I135: ООО “САМАРА-ХОЛДИНГ” | J135: 6316057678 | K135: 631601001 | Q135: РСО | R135: /Электроэнергетика/Передача ЭЭ/РСО
A136: 135 | B136: 2638 | C136: Самарская область | H136: 26322490 | I136: ООО “САМАРСКИЙ ДЕЛОВОЙ ЦЕНТР” | J136: 6316078251 | K136: 631601001 | Q136: РСО | R136: /Электроэнергетика/Передача ЭЭ/РСО
A137: 136 | B137: 2638 | C137: Самарская область | H137: 26322493 | I137: ООО “ТОЛЬЯТТИСПИРТПРОМ” | J137: 6323052720 | K137: 632301001 | Q137: РСО | R137: /Электроэнергетика/Передача ЭЭ/РСО
A138: 137 | B138: 2638 | C138: Самарская область | H138: 26642618 | I138: ООО “УЭС” | J138: 6330027146 | K138: 633001001 | Q138: РСО | R138: /Электроэнергетика/Передача ЭЭ/РСО
A139: 138 | B139: 2638 | C139: Самарская область | H139: 26322444 | I139: ООО “ЭНЕРГОБЫТОБСЛУЖИВАНИЕ” | J139: 6313039399 | K139: 631301001 | Q139: РСО | R139: /Электроэнергетика/Передача ЭЭ/РСО
A140: 139 | B140: 2638 | C140: Самарская область | H140: 26485246 | I140: ООО “ЭНЕРГОЗАВОД” | J140: 6376012939 | K140: 637601001 | Q140: РСО | R140: /Электроэнергетика/Передача ЭЭ/РСО
A141: 140 | B141: 2638 | C141: Самарская область | H141: 26495951 | I141: ООО “Эл-Транзит Плюс” | J141: 6317074500 | K141: 631901001 | Q141: РСО | R141: /Электроэнергетика/Передача ЭЭ/РСО
A142: 141 | B142: 2638 | C142: Самарская область | H142: 26485662 | I142: ООО “Электрощит” - Энерготехстрой” | J142: 6313132888 | K142: 631301001 | Q142: РСО | R142: /Электроэнергетика/Передача ЭЭ/РСО
A143: 142 | B143: 2638 | C143: Самарская область | H143: 27891820 | I143: ООО «Ставропольская Электросеть» | J143: 6323083767 | K143: 632301001 | Q143: РСО | R143: /Электроэнергетика/Передача ЭЭ/РСО
A144: 143 | B144: 2638 | C144: Самарская область | H144: 28139574 | I144: ООО «Энергосервис» | J144: 6372020720 | K144: 635001001 | Q144: РСО | R144: /Электроэнергетика/Передача ЭЭ/РСО
A145: 144 | B145: 2638 | C145: Самарская область | H145: 26792017 | I145: Общество с ограниченной ответственностью "АРСТЭМ-ЭнергоТрейд", г.Екатеринбург | J145: 6672185635 | K145: 667201001 | Q145: Нерегулируемый сбыт | R145: /Электроэнергетика/Сбыт ЭЭ/Нерегулируемый сбыт
A146: 145 | B146: 2638 | C146: Самарская область | H146: 26809138 | I146: ПАО "МРСК Волги" | J146: 6450925977 | K146: 645001001 | L146: 29-06-2007 00:00:00 | Q146: РСО | R146: /Электроэнергетика/Передача ЭЭ/РСО
A147: 146 | B147: 2638 | C147: Самарская область | H147: 26318851 | I147: ПАО "РЭСК" | J147: 6229049014 | K147: 623401001 | Q147: Нерегулируемый сбыт | R147: /Электроэнергетика/Сбыт ЭЭ/Нерегулируемый сбыт
A148: 147 | B148: 2638 | C148: Самарская область | H148: 26318979 | I148: ПАО "Самараэнерго" | J148: 6315222985 | K148: 997450001 | Q148: РСО :: Нерегулируемый сбыт :: ГП :: Комбинированная выработка :: Некомбинированная выработка | R148: /Электроэнергетика/Передача ЭЭ/РСО :: /Электроэнергетика/Сбыт ЭЭ/Нерегулируемый сбыт :: /Электроэнергетика/Сбыт ЭЭ/ГП :: /Электроэнергетика/Производство ЭЭ/Комбинированная выработка :: /Электроэнергетика/Производство ЭЭ/Некомбинированная выработка
A149: 148 | B149: 2638 | C149: Самарская область | H149: 26318986 | I149: ПАО "Ульяновскэнерго" | J149: 7327012462 | K149: 730350001 | Q149: Нерегулируемый сбыт | R149: /Электроэнергетика/Сбыт ЭЭ/Нерегулируемый сбыт
A150: 149 | B150: 2638 | C150: Самарская область | H150: 26832761 | I150: ПАО "ФСК ЕЭС" | J150: 4716016979 | K150: 772801001 | Q150: РСО | R150: /Электроэнергетика/Передача ЭЭ/РСО
A151: 150 | B151: 2638 | C151: Самарская область | H151: 26322448 | I151: ПАО “АВТОВАЗ” | J151: 6320002223 | K151: 997850001 | Q151: РСО | R151: /Электроэнергетика/Передача ЭЭ/РСО
A152: 151 | B152: 2638 | C152: Самарская область | H152: 26322468 | I152: ПАО “Завод имени А.М. Тарасова” | J152: 6319017480 | K152: 631901001 | Q152: РСО | R152: /Электроэнергетика/Передача ЭЭ/РСО
A153: 152 | B153: 2638 | C153: Самарская область | H153: 26485603 | I153: ПАО “КУЗНЕЦОВ” | J153: 6319033379 | K153: 631901001 | Q153: РСО | R153: /Электроэнергетика/Передача ЭЭ/РСО
A154: 153 | B154: 2638 | C154: Самарская область | H154: 26485611 | I154: ПАО “САЛЮТ” | J154: 6313034986 | K154: 631301001 | Q154: РСО | R154: /Электроэнергетика/Передача ЭЭ/РСО
A155: 154 | B155: 2638 | C155: Самарская область | H155: 26324408 | I155: Самарская ГРЭС | J155: 6315376946 | K155: 631502001 | Q155: Комбинированная выработка | R155: /Электроэнергетика/Производство ЭЭ/Комбинированная выработка
A156: 155 | B156: 2638 | C156: Самарская область | H156: 26518665 | I156: Саратовский филиал ООО "Газпром энерго" | J156: 7736186950 | K156: 645302001 | L156: 17-04-2006 00:00:00 | Q156: РСО | R156: /Электроэнергетика/Передача ЭЭ/РСО
A157: 156 | B157: 2638 | C157: Самарская область | H157: 26485122 | I157: ФГБУЗ МРЦ "Сергиевские минеральные воды" ФМБА России | J157: 6381000103 | K157: 638101001 | Q157: РСО | R157: /Электроэнергетика/Передача ЭЭ/РСО
A158: 157 | B158: 2638 | C158: Самарская область | H158: 26784998 | I158: ФКП "Самарский завод "Коммунар" | J158: 6367080065 | K158: 636701001 | L158: 23-10-2000 00:00:00 | Q158: РСО | R158: /Электроэнергетика/Передача ЭЭ/РСО
A159: 158 | B159: 2638 | C159: Самарская область | H159: 26322509 | I159: ФКП “Приволжский государственный боеприпасный испытательный полигон” | J159: 6330280371 | K159: 631001001 | Q159: РСО | R159: /Электроэнергетика/Передача ЭЭ/РСО
A160: 159 | B160: 2638 | C160: Самарская область | H160: 27540016 | I160: Филиал "Самарский" ПАО "Т Плюс" | J160: 6315376946 | K160: 631543004 | Q160: Комбинированная выработка :: Некомбинированная выработка | R160: /Электроэнергетика/Производство ЭЭ/Комбинированная выработка :: /Электроэнергетика/Производство ЭЭ/Некомбинированная выработка
A161: 160 | B161: 2638 | C161: Самарская область | H161: 30877589 | I161: Филиал «Уральский» АО «Оборонэнергосбыт» | J161: 7704731218 | K161: 665843001 | Q161: ГП | R161: /Электроэнергетика/Сбыт ЭЭ/ГП
A162: 161 | B162: 2638 | C162: Самарская область | H162: 30848502 | I162: Филиал ПАО "МРСК Волги" - "Самарские распределительные сети" | J162: 6450925977 | K162: 631602001 | Q162: РСО | R162: /Электроэнергетика/Передача ЭЭ/РСО
A163: 162 | B163: 2638 | C163: Самарская область | H163: 26643263 | I163: Южно-Уральская дирекция по энергообеспечению – структурное подразделение Трансэнерго – филиала ОАО «РЖД» | J163: 7708503727 | K163: 745145018 | Q163: РСО | R163: /Электроэнергетика/Передача ЭЭ/РСО
A164: 163 | B164: 2638 | C164: Самарская область | H164: 26794614 | I164: филиал ОАО "ПК "Балтика" "Балтика-Самара" | J164: 7830001405 | K164: 637102001 | Q164: Нерегулируемый сбыт | R164: /Электроэнергетика/Сбыт ЭЭ/Нерегулируемый сбыт
A165: 164 | B165: 2638 | C165: Самарская область | H165: 26324412 | I165: филиал ПАО "РусГидро" - "Жигулевская ГЭС" | J165: 2460066195 | K165: 634502001 | Q165: Некомбинированная выработка | R165: /Электроэнергетика/Производство ЭЭ/Некомбинированная выработка

Sheet REESTR_FIL (hidden)
A1: МР | B1: МО | C1: МО_ОКТМО | D1: МР | E1: ИМЯ ДИАПАЗОНА

Sheet REESTR_MO (hidden)
A1: МР | B1: МО | C1: МО_ОКТМО | D1: МО_ТИП | E1: МР | F1: ИМЯ ДИАПАЗОНА
A2: Алексеевский муниципальный район | B2: Алексеевский муниципальный район | C2: 36602000 | D2: муниципальный район | E2: Алексеевский муниципальный район | F2: MO_LIST_2
A3: Алексеевский муниципальный район | B3: сельское поселение Авангард | C3: 36602404 | D3: сельское поселение | E3: Безенчукский муниципальный район | F3: MO_LIST_3
A4: Алексеевский муниципальный район | B4: сельское поселение Алексеевка | C4: 36602408 | D4: сельское поселение | E4: Богатовский муниципальный район | F4: MO_LIST_4
A5: Алексеевский муниципальный район | B5: сельское поселение Гавриловка | C5: 36602412 | D5: сельское поселение | E5: Большеглушицкий муниципальный район | F5: MO_LIST_5
A6: Алексеевский муниципальный район | B6: сельское поселение Герасимовка | C6: 36602416 | D6: сельское поселение | E6: Большечерниговский муниципальный район | F6: MO_LIST_6
A7: Алексеевский муниципальный район | B7: сельское поселение Летниково | C7: 36602420 | D7: сельское поселение | E7: Борский муниципальный район | F7: MO_LIST_7
A8: Безенчукский муниципальный район | B8: Безенчукский муниципальный район | C8: 36604000 | D8: муниципальный район | E8: Волжский муниципальный район | F8: MO_LIST_8
A9: Безенчукский муниципальный район | B9: городское поселение Безенчук | C9: 36604151 | D9: городское поселение, в состав которого входит поселок | E9: Елховский муниципальный район | F9: MO_LIST_9
A10: Безенчукский муниципальный район | B10: городское поселение Осинки | C10: 36604157 | D10: городское поселение, в состав которого входит поселок | E10: Исаклинский муниципальный район | F10: MO_LIST_10
A11: Безенчукский муниципальный район | B11: сельское поселение Васильевка | C11: 36604408 | D11: сельское поселение | E11: Камышлинский муниципальный район | F11: MO_LIST_11
A12: Безенчукский муниципальный район | B12: сельское поселение Екатериновка | C12: 36604412 | D12: сельское поселение | E12: Кинель-Черкасский муниципальный район | F12: MO_LIST_12
A13: Безенчукский муниципальный район | B13: сельское поселение Звезда | C13: 36604416 | D13: сельское поселение | E13: Кинельский муниципальный район | F13: MO_LIST_13
A14: Безенчукский муниципальный район | B14: сельское поселение Купино | C14: 36604420 | D14: сельское поселение | E14: Клявлинский муниципальный район | F14: MO_LIST_14
A15: Безенчукский муниципальный район | B15: сельское поселение Натальино | C15: 36604424 | D15: сельское поселение | E15: Кошкинский муниципальный район | F15: MO_LIST_15
A16: Безенчукский муниципальный район | B16: сельское поселение Ольгино | C16: 36604440 | D16: сельское поселение | E16: Красноармейский муниципальный район | F16: MO_LIST_16
A17: Безенчукский муниципальный район | B17: сельское поселение Переволоки | C17: 36604428 | D17: сельское поселение | E17: Красноярский муниципальный район | F17: MO_LIST_17
A18: Безенчукский муниципальный район | B18: сельское поселение Песочное | C18: 36604430 | D18: сельское поселение | E18: Нефтегорский муниципальный район | F18: MO_LIST_18
A19: Безенчукский муниципальный район | B19: сельское поселение Преполовенка | C19: 36604432 | D19: сельское поселение | E19: Пестравский муниципальный район | F19: MO_LIST_19
A20: Безенчукский муниципальный район | B20: сельское поселение Прибой | C20: 36604436 | D20: сельское поселение | E20: Похвистневский муниципальный район | F20: MO_LIST_20
A21: Богатовский муниципальный район | B21: Богатовский муниципальный район | C21: 36606000 | D21: муниципальный район | E21: Приволжский муниципальный район | F21: MO_LIST_21
A22: Богатовский муниципальный район | B22: сельское поселение Арзамасцевка | C22: 36606404 | D22: сельское поселение | E22: Сергиевский муниципальный район | F22: MO_LIST_22
A23: Богатовский муниципальный район | B23: сельское поселение Богатое | C23: 36606408 | D23: сельское поселение | E23: Ставропольский муниципальный район | F23: MO_LIST_23
A24: Богатовский муниципальный район | B24: сельское поселение Виловатое | C24: 36606412 | D24: сельское поселение | E24: Сызранский муниципальный район | F24: MO_LIST_24
A25: Богатовский муниципальный район | B25: сельское поселение Максимовка | C25: 36606416 | D25: сельское поселение | E25: Хворостянский муниципальный район | F25: MO_LIST_25
A26: Богатовский муниципальный район | B26: сельское поселение Печинено | C26: 36606420 | D26: сельское поселение | E26: Челно-Вершинский муниципальный район | F26: MO_LIST_26
A27: Большеглушицкий муниципальный район | B27: Большеглушицкий муниципальный район | C27: 36608000 | D27: муниципальный район | E27: Шенталинский муниципальный район | F27: MO_LIST_27
A28: Большеглушицкий муниципальный район | B28: сельское поселение Александровка | C28: 36608404 | D28: сельское поселение | E28: Шигонский муниципальный район | F28: MO_LIST_28
A29: Большеглушицкий муниципальный район | B29: сельское поселение Большая Глушица | C29: 36608408 | D29: сельское поселение | E29: городской округ Жигулевск | F29: MO_LIST_29
A30: Большеглушицкий муниципальный район | B30: сельское поселение Большая Дергуновка | C30: 36608412 | D30: сельское поселение | E30: городской округ Кинель | F30: MO_LIST_30
A31: Большеглушицкий муниципальный район | B31: сельское поселение Малая Глушица | C31: 36608416 | D31: сельское поселение | E31: городской округ Новокуйбышевск | F31: MO_LIST_31
A32: Большеглушицкий муниципальный район | B32: сельское поселение Мокша | C32: 36608418 | D32: сельское поселение | E32: городской округ Октябрьск | F32: MO_LIST_32
A33: Большеглушицкий муниципальный район | B33: сельское поселение Новопавловка | C33: 36608420 | D33: сельское поселение | E33: городской округ Отрадный | F33: MO_LIST_33
A34: Большеглушицкий муниципальный район | B34: сельское поселение Фрунзенское | C34: 36608424 | D34: сельское поселение | E34: городской округ Похвистнево | F34: MO_LIST_34
A35: Большеглушицкий муниципальный район | B35: сельское поселение Южное | C35: 36608428 | D35: сельское поселение | E35: городской округ Самара | F35: MO_LIST_35
A36: Большечерниговский муниципальный район | B36: Большечерниговский муниципальный район | C36: 36610000 | D36: муниципальный район | E36: городской округ Сызрань | F36: MO_LIST_36
A37: Большечерниговский муниципальный район | B37: сельское поселение Августовка | C37: 36610404 | D37: сельское поселение | E37: городской округ Тольятти | F37: MO_LIST_37
A38: Большечерниговский муниципальный район | B38: сельское поселение Большая Черниговка | C38: 36610412 | D38: сельское поселение | E38: городской округ Чапаевск | F38: MO_LIST_38
A39: Большечерниговский муниципальный район | B39: сельское поселение Восточный | C39: 36610416 | D39: сельское поселение
A40: Большечерниговский муниципальный район | B40: сельское поселение Глушицкий | C40: 36610408 | D40: сельское поселение
A41: Большечерниговский муниципальный район | B41: сельское поселение Краснооктябрьский | C41: 36610420 | D41: сельское поселение
A42: Большечерниговский муниципальный район | B42: сельское поселение Пензено | C42: 36610424 | D42: сельское поселение
A43: Большечерниговский муниципальный район | B43: сельское поселение Петровский | C43: 36610426 | D43: сельское поселение
A44: Большечерниговский муниципальный район | B44: сельское поселение Поляков | C44: 36610427 | D44: сельское поселение
A45: Большечерниговский муниципальный район | B45: сельское поселение Украинка | C45: 36610428 | D45: сельское поселение
A46: Борский муниципальный район | B46: Борский муниципальный район | C46: 36612000 | D46: муниципальный район
A47: Борский муниципальный район | B47: сельское поселение Большое Алдаркино | C47: 36612404 | D47: сельское поселение
A48: Борский муниципальный район | B48: сельское поселение Борское | C48: 36612408 | D48: сельское поселение
A49: Борский муниципальный район | B49: сельское поселение Гвардейцы | C49: 36612412 | D49: сельское поселение
A50: Борский муниципальный район | B50: сельское поселение Долматовка | C50: 36612416 | D50: сельское поселение
A51: Борский муниципальный район | B51: сельское поселение Заплавное | C51: 36612420 | D51: сельское поселение
A52: Борский муниципальный район | B52: сельское поселение Коноваловка | C52: 36612424 | D52: сельское поселение
A53: Борский муниципальный район | B53: сельское поселение Новоборское | C53: 36612434 | D53: сельское поселение
A54: Борский муниципальный район | B54: сельское поселение Новый Кутулук | C54: 36612432 | D54: сельское поселение
A55: Борский муниципальный район | B55: сельское поселение Петровка | C55: 36612436 | D55: сельское поселение
A56: Борский муниципальный район | B56: сельское поселение Подгорное | C56: 36612440 | D56: сельское поселение
A57: Борский муниципальный район | B57: сельское поселение Подсолнечное | C57: 36612444 | D57: сельское поселение
A58: Борский муниципальный район | B58: сельское поселение Таволжанка | C58: 36612453 | D58: сельское поселение
A59: Борский муниципальный район | B59: сельское поселение Усманка | C59: 36612456 | D59: сельское поселение
A60: Волжский муниципальный район | B60: Волжский муниципальный район | C60: 36614000 | D60: муниципальный район
A61: Волжский муниципальный район | B61: городское поселение Петра Дубрава | C61: 36614155 | D61: городское поселение, в состав которого входит поселок
A62: Волжский муниципальный район | B62: городское поселение Рощинский | C62: 36614156 | D62: городское поселение, в состав которого входит поселок
A63: Волжский муниципальный район | B63: городское поселение Смышляевка | C63: 36614157 | D63: городское поселение, в состав которого входит поселок
A64: Волжский муниципальный район | B64: сельское поселение Верхняя Подстепновка | C64: 36614403 | D64: сельское поселение
A65: Волжский муниципальный район | B65: сельское поселение Воскресенка | C65: 36614404 | D65: сельское поселение
A66: Волжский муниципальный район | B66: сельское поселение Дубовый умет | C66: 36614416 | D66: сельское поселение
A67: Волжский муниципальный район | B67: сельское поселение Курумоч | C67: 36614420 | D67: сельское поселение
A68: Волжский муниципальный район | B68: сельское поселение Лопатино | C68: 36614421 | D68: сельское поселение
A69: Волжский муниципальный район | B69: сельское поселение Подъем-Михайловка | C69: 36614432 | D69: сельское поселение
A70: Волжский муниципальный район | B70: сельское поселение Просвет | C70: 36614436 | D70: сельское поселение
A71: Волжский муниципальный район | B71: сельское поселение Рождествено | C71: 36614440 | D71: сельское поселение
A72: Волжский муниципальный район | B72: сельское поселение Спиридоновка | C72: 36614444 | D72: сельское поселение
A73: Волжский муниципальный район | B73: сельское поселение Сухая Вязовка | C73: 36614448 | D73: сельское поселение
A74: Волжский муниципальный район | B74: сельское поселение Черновский | C74: 36614452 | D74: сельское поселение
A75: Волжский муниципальный район | B75: сельское поселение Черноречье | C75: 36614456 | D75: сельское поселение
A76: Елховский муниципальный район | B76: Елховский муниципальный район | C76: 36615000 | D76: муниципальный район
A77: Елховский муниципальный район | B77: сельское поселение Березовка | C77: 36615405 | D77: сельское поселение
A78: Елховский муниципальный район | B78: сельское поселение Елховка | C78: 36615420 | D78: сельское поселение
A79: Елховский муниципальный район | B79: сельское поселение Красное Поселение | C79: 36615440 | D79: сельское поселение
A80: Елховский муниципальный район | B80: сельское поселение Красные Дома | C80: 36615435 | D80: сельское поселение
A81: Елховский муниципальный район | B81: сельское поселение Никитинка | C81: 36615450 | D81: сельское поселение
A82: Елховский муниципальный район | B82: сельское поселение Сухие Аврали | C82: 36615460 | D82: сельское поселение
A83: Елховский муниципальный район | B83: сельское поселение Теплый Стан | C83: 36615465 | D83: сельское поселение
A84: Исаклинский муниципальный район | B84: Исаклинский муниципальный район | C84: 36616000 | D84: муниципальный район
A85: Исаклинский муниципальный район | B85: сельское поселение Большое Микушкино | C85: 36616420 | D85: сельское поселение
A86: Исаклинский муниципальный район | B86: сельское поселение Два Ключа | C86: 36616404 | D86: сельское поселение
A87: Исаклинский муниципальный район | B87: сельское поселение Исаклы | C87: 36616408 | D87: сельское поселение
A88: Исаклинский муниципальный район | B88: сельское поселение Ключи | C88: 36616416 | D88: сельское поселение
A89: Исаклинский муниципальный район | B89: сельское поселение Мордово-Ишуткино | C89: 36616412 | D89: сельское поселение
A90: Исаклинский муниципальный район | B90: сельское поселение Новое Ганькино | C90: 36616428 | D90: сельское поселение
A91: Исаклинский муниципальный район | B91: сельское поселение Новое Якушкино | C91: 36616432 | D91: сельское поселение
A92: Исаклинский муниципальный район | B92: сельское поселение Старое Вечканово | C92: 36616436 | D92: сельское поселение
A93: Камышлинский муниципальный район | B93: Камышлинский муниципальный район | C93: 36617000 | D93: муниципальный район
A94: Камышлинский муниципальный район | B94: сельское поселение Байтуган | C94: 36617404 | D94: сельское поселение
A95: Камышлинский муниципальный район | B95: сельское поселение Балыкла | C95: 36617408 | D95: сельское поселение
A96: Камышлинский муниципальный район | B96: сельское поселение Ермаково | C96: 36617416 | D96: сельское поселение
A97: Камышлинский муниципальный район | B97: сельское поселение Камышла | C97: 36617420 | D97: сельское поселение
A98: Камышлинский муниципальный район | B98: сельское поселение Новое Усманово | C98: 36617436 | D98: сельское поселение
A99: Камышлинский муниципальный район | B99: сельское поселение Старое Усманово | C99: 36617458 | D99: сельское поселение
A100: Кинель-Черкасский муниципальный район | B100: Кинель-Черкасский муниципальный район | C100: 36620000 | D100: муниципальный район
A101: Кинель-Черкасский муниципальный район | B101: Межселенная территория Кинель-Черкасского муниципального района, включающая территорию чересполосного земельного участка | C101: 36620701 | D101: межселенная территория
A102: Кинель-Черкасский муниципальный район | B102: сельское поселение Александровка | C102: 36620404 | D102: сельское поселение
A103: Кинель-Черкасский муниципальный район | B103: сельское поселение Березняки | C103: 36620408 | D103: сельское поселение
A104: Кинель-Черкасский муниципальный район | B104: сельское поселение Ерзовка | C104: 36620420 | D104: сельское поселение
A105: Кинель-Черкасский муниципальный район | B105: сельское поселение Кабановка | C105: 36620428 | D105: сельское поселение
A106: Кинель-Черкасский муниципальный район | B106: сельское поселение Кинель-Черкассы | C106: 36620432 | D106: сельское поселение
A107: Кинель-Черкасский муниципальный район | B107: сельское поселение Красная Горка | C107: 36620440 | D107: сельское поселение
A108: Кинель-Черкасский муниципальный район | B108: сельское поселение Кротовка | C108: 36620444 | D108: сельское поселение
A109: Кинель-Черкасский муниципальный район | B109: сельское поселение Муханово | C109: 36620448 | D109: сельское поселение
A110: Кинель-Черкасский муниципальный район | B110: сельское поселение Новые Ключи | C110: 36620452 | D110: сельское поселение
A111: Кинель-Черкасский муниципальный район | B111: сельское поселение Подгорное | C111: 36620453 | D111: сельское поселение
A112: Кинель-Черкасский муниципальный район | B112: сельское поселение Садгород | C112: 36620458 | D112: сельское поселение
A113: Кинель-Черкасский муниципальный район | B113: сельское поселение Тимашево | C113: 36620466 | D113: сельское поселение
A114: Кинель-Черкасский муниципальный район | B114: сельское поселение Черновка | C114: 36620468 | D114: сельское поселение
A115: Кинельский муниципальный район | B115: Кинельский муниципальный район | C115: 36618000 | D115: муниципальный район
A116: Кинельский муниципальный район | B116: сельское поселение Алакаевка | C116: 36618404 | D116: сельское поселение
A117: Кинельский муниципальный район | B117: сельское поселение Бобровка | C117: 36618408 | D117: сельское поселение
A118: Кинельский муниципальный район | B118: сельское поселение Богдановка | C118: 36618412 | D118: сельское поселение
A119: Кинельский муниципальный район | B119: сельское поселение Георгиевка | C119: 36618416 | D119: сельское поселение
A120: Кинельский муниципальный район | B120: сельское поселение Домашка | C120: 36618420 | D120: сельское поселение
A121: Кинельский муниципальный район | B121: сельское поселение Кинельский | C121: 36618424 | D121: сельское поселение
A122: Кинельский муниципальный район | B122: сельское поселение Комсомольский | C122: 36618428 | D122: сельское поселение
A123: Кинельский муниципальный район | B123: сельское поселение Красносамарское | C123: 36618432 | D123: сельское поселение
A124: Кинельский муниципальный район | B124: сельское поселение Малая Малышевка | C124: 36618436 | D124: сельское поселение
A125: Кинельский муниципальный район | B125: сельское поселение Новый Сарбай | C125: 36618440 | D125: сельское поселение
A126: Кинельский муниципальный район | B126: сельское поселение Сколково | C126: 36618444 | D126: сельское поселение
A127: Кинельский муниципальный район | B127: сельское поселение Чубовка | C127: 36618448 | D127: сельское поселение
A128: Клявлинский муниципальный район | B128: Клявлинский муниципальный район | C128: 36622000 | D128: муниципальный район
A129: Клявлинский муниципальный район | B129: сельское поселение Борискино-Игар | C129: 36622412 | D129: сельское поселение
A130: Клявлинский муниципальный район | B130: сельское поселение Назаровка | C130: 36622460 | D130: сельское поселение
A131: Клявлинский муниципальный район | B131: сельское поселение Старое Семенкино | C131: 36622452 | D131: сельское поселение
A132: Клявлинский муниципальный район | B132: сельское поселение Старый Маклауш | C132: 36622448 | D132: сельское поселение
A133: Клявлинский муниципальный район | B133: сельское поселение Черный Ключ | C133: 36622468 | D133: сельское поселение
A134: Клявлинский муниципальный район | B134: сельское поселение станция Клявлино | C134: 36622424 | D134: сельское поселение
A135: Кошкинский муниципальный район | B135: Кошкинский муниципальный район | C135: 36624000 | D135: муниципальный район
A136: Кошкинский муниципальный район | B136: сельское поселение Большая Константиновка | C136: 36624408 | D136: сельское поселение
A137: Кошкинский муниципальный район | B137: сельское поселение Большая Романовка | C137: 36624412 | D137: сельское поселение
A138: Кошкинский муниципальный район | B138: сельское поселение Большое Ермаково | C138: 36624424 | D138: сельское поселение
A139: Кошкинский муниципальный район | B139: сельское поселение Кошки | C139: 36624432 | D139: сельское поселение
A140: Кошкинский муниципальный район | B140: сельское поселение Надеждино | C140: 36624448 | D140: сельское поселение
A141: Кошкинский муниципальный район | B141: сельское поселение Нижняя Быковка | C141: 36624452 | D141: сельское поселение
A142: Кошкинский муниципальный район | B142: сельское поселение Новая Кармала | C142: 36624428 | D142: сельское поселение
A143: Кошкинский муниципальный район | B143: сельское поселение Орловка | C143: 36624458 | D143: сельское поселение
A144: Кошкинский муниципальный район | B144: сельское поселение Русская Васильевка | C144: 36624416 | D144: сельское поселение
A145: Кошкинский муниципальный район | B145: сельское поселение Старое Максимкино | C145: 36624464 | D145: сельское поселение
A146: Кошкинский муниципальный район | B146: сельское поселение Степная Шентала | C146: 36624468 | D146: сельское поселение
A147: Кошкинский муниципальный район | B147: сельское поселение Четыровка | C147: 36624480 | D147: сельское поселение
A148: Кошкинский муниципальный район | B148: сельское поселение Шпановка | C148: 36624484 | D148: сельское поселение
A149: Красноармейский муниципальный район | B149: Красноармейский муниципальный район | C149: 36626000 | D149: муниципальный район
A150: Красноармейский муниципальный район | B150: сельское поселение Алексеевский | C150: 36626402 | D150: сельское поселение
A151: Красноармейский муниципальный район | B151: сельское поселение Андросовка | C151: 36626404 | D151: сельское поселение
A152: Красноармейский муниципальный район | B152: сельское поселение Волчанка | C152: 36626408 | D152: сельское поселение
A153: Красноармейский муниципальный район | B153: сельское поселение Гражданский | C153: 36626412 | D153: сельское поселение
A154: Красноармейский муниципальный район | B154: сельское поселение Кировский | C154: 36626416 | D154: сельское поселение
A155: Красноармейский муниципальный район | B155: сельское поселение Колывань | C155: 36626420 | D155: сельское поселение
A156: Красноармейский муниципальный район | B156: сельское поселение Красноармейское | C156: 36626424 | D156: сельское поселение
A157: Красноармейский муниципальный район | B157: сельское поселение Криволучье-Ивановка | C157: 36626426 | D157: сельское поселение
A158: Красноармейский муниципальный район | B158: сельское поселение Куйбышевский | C158: 36626428 | D158: сельское поселение
A159: Красноармейский муниципальный район | B159: сельское поселение Ленинский | C159: 36626432 | D159: сельское поселение
A160: Красноармейский муниципальный район | B160: сельское поселение Павловка | C160: 36626434 | D160: сельское поселение
A161: Красноармейский муниципальный район | B161: сельское поселение Чапаевский | C161: 36626436 | D161: сельское поселение
A162: Красноярский муниципальный район | B162: Красноярский муниципальный район | C162: 36628000 | D162: муниципальный район
A163: Красноярский муниципальный район | B163: городское поселение Волжский | C163: 36628155 | D163: городское поселение, в состав которого входит поселок
A164: Красноярский муниципальный район | B164: городское поселение Мирный | C164: 36628158 | D164: городское поселение, в состав которого входит поселок
A165: Красноярский муниципальный район | B165: городское поселение Новосемейкино | C165: 36628163 | D165: городское поселение, в состав которого входит поселок
A166: Красноярский муниципальный район | B166: сельское поселение Большая Каменка | C166: 36628404 | D166: сельское поселение
A167: Красноярский муниципальный район | B167: сельское поселение Большая Раковка | C167: 36628408 | D167: сельское поселение
A168: Красноярский муниципальный район | B168: сельское поселение Коммунарский | C168: 36628412 | D168: сельское поселение
A169: Красноярский муниципальный район | B169: сельское поселение Красный Яр | C169: 36628416 | D169: сельское поселение
A170: Красноярский муниципальный район | B170: сельское поселение Новый Буян | C170: 36628420 | D170: сельское поселение
A171: Красноярский муниципальный район | B171: сельское поселение Светлое Поле | C171: 36628424 | D171: сельское поселение
A172: Красноярский муниципальный район | B172: сельское поселение Старая Бинарадка | C172: 36628428 | D172: сельское поселение
A173: Красноярский муниципальный район | B173: сельское поселение Хилково | C173: 36628432 | D173: сельское поселение
A174: Красноярский муниципальный район | B174: сельское поселение Хорошенькое | C174: 36628436 | D174: сельское поселение
A175: Красноярский муниципальный район | B175: сельское поселение Шилан | C175: 36628440 | D175: сельское поселение
A176: Нефтегорский муниципальный район | B176: Нефтегорский муниципальный район | C176: 36630000 | D176: муниципальный район
A177: Нефтегорский муниципальный район | B177: городское поселение Нефтегорск | C177: 36630101 | D177: городское поселение, в состав которого входит город
A178: Нефтегорский муниципальный район | B178: сельское поселение Бариновка | C178: 36630402 | D178: сельское поселение
A179: Нефтегорский муниципальный район | B179: сельское поселение Богдановка | C179: 36630404 | D179: сельское поселение
A180: Нефтегорский муниципальный район | B180: сельское поселение Дмитриевка | C180: 36630408 | D180: сельское поселение
A181: Нефтегорский муниципальный район | B181: сельское поселение Зуевка | C181: 36630412 | D181: сельское поселение
A182: Нефтегорский муниципальный район | B182: сельское поселение Кулешовка | C182: 36630413 | D182: сельское поселение
A183: Нефтегорский муниципальный район | B183: сельское поселение Покровка | C183: 36630414 | D183: сельское поселение
A184: Нефтегорский муниципальный район | B184: сельское поселение Семеновка | C184: 36630416 | D184: сельское поселение
A185: Нефтегорский муниципальный район | B185: сельское поселение Утевка | C185: 36630420 | D185: сельское поселение
A186: Пестравский муниципальный район | B186: Пестравский муниципальный район | C186: 36632000 | D186: муниципальный район
A187: Пестравский муниципальный район | B187: сельское поселение Высокое | C187: 36632404 | D187: сельское поселение
A188: Пестравский муниципальный район | B188: сельское поселение Красная Поляна | C188: 36632408 | D188: сельское поселение
A189: Пестравский муниципальный район | B189: сельское поселение Майское | C189: 36632412 | D189: сельское поселение
A190: Пестравский муниципальный район | B190: сельское поселение Марьевка | C190: 36632416 | D190: сельское поселение
A191: Пестравский муниципальный район | B191: сельское поселение Михайло-Овсянка | C191: 36632420 | D191: сельское поселение
A192: Пестравский муниципальный район | B192: сельское поселение Мосты | C192: 36632424 | D192: сельское поселение
A193: Пестравский муниципальный район | B193: сельское поселение Падовка | C193: 36632428 | D193: сельское поселение
A194: Пестравский муниципальный район | B194: сельское поселение Пестравка | C194: 36632432 | D194: сельское поселение
A195: Похвистневский муниципальный район | B195: Похвистневский муниципальный район | C195: 36634000 | D195: муниципальный район
A196: Похвистневский муниципальный район | B196: сельское поселение Алькино | C196: 36634408 | D196: сельское поселение
A197: Похвистневский муниципальный район | B197: сельское поселение Большой Толкай | C197: 36634412 | D197: сельское поселение
A198: Похвистневский муниципальный район | B198: сельское поселение Красные Ключи | C198: 36634426 | D198: сельское поселение
A199: Похвистневский муниципальный район | B199: сельское поселение Кротково | C199: 36634428 | D199: сельское поселение
A200: Похвистневский муниципальный район | B200: сельское поселение Малое Ибряйкино | C200: 36634420 | D200: сельское поселение
... 144 more rows

Sheet REESTR_EGRUL (hidden)

Sheet modfrmRegion (hidden)

Sheet modfrmReestr (hidden)

Sheet modfrmFindEGRUL (hidden)

Sheet modfrmCheckUpdates (hidden)

Sheet modReestr (hidden)

Sheet modUpdTemplMain (hidden)

Sheet modHyperlink (hidden)

Sheet modClassifierValidate (hidden)
